{"text_format":"1","workbook":"xlsx","n_sheets":5,"sheets":["INFORMAÇÕES GERAIS","EMPRESAS ELABORADORAS","LISTA","LISTA_PATRIMÔNIO","LISTAS"],"not_rendered":{"charts":0,"images":1,"macros":1,"external_links":0,"defined_names":58,"comments":0,"pivot_tables":0},"unopened":[],"bounds":{"document_bytes":16777216,"sheet_cells":100000,"rows_first":2000,"rows_last":500,"rows_between":2000,"halvings":0,"cell_chars":16384,"cell_head_chars":4096},"cells_cut":0,"cells_raw":0,"read":"whole","date_system":"1900"}

{"sheet":"INFORMAÇÕES GERAIS","index":0,"n_rows":838,"n_cols":51,"rows_kept":838,"cut":false,"hidden":false,"merged":[[428,35,428,39],[428,0,428,34],[484,33,484,38],[484,0,484,32],[484,39,484,44],[538,33,538,38],[538,39,538,44],[538,0,538,32],[168,36,168,39],[168,40,168,44],[168,0,168,35],[222,0,222,35],[222,36,222,39],[222,40,222,44],[428,40,428,44],[524,0,524,6],[524,7,524,29],[524,30,524,32],[524,33,524,38],[524,39,524,44],[525,0,525,6],[525,7,525,29],[525,30,525,32],[525,33,525,38],[525,39,525,44],[526,0,526,6],[526,7,526,29],[526,30,526,32],[526,33,526,38],[526,39,526,44],[527,0,527,6],[527,7,527,29],[527,30,527,32],[527,33,527,38],[527,39,527,44],[520,0,520,6],[520,7,520,29],[520,30,520,32],[520,33,520,38],[520,39,520,44],[521,0,521,6],[521,7,521,29],[521,30,521,32],[521,33,521,38],[521,39,521,44],[522,0,522,6],[522,7,522,29],[522,30,522,32],[522,33,522,38],[522,39,522,44],[523,0,523,6],[523,7,523,29],[523,30,523,32],[523,33,523,38],[523,39,523,44],[516,0,516,6],[516,7,516,29],[516,30,516,32],[516,33,516,38],[516,39,516,44],[517,0,517,6],[517,7,517,29],[517,30,517,32],[517,33,517,38],[517,39,517,44],[518,0,518,6],[518,7,518,29],[518,30,518,32],[518,33,518,38],[518,39,518,44],[519,0,519,6],[519,7,519,29],[519,30,519,32],[519,33,519,38],[519,39,519,44],[512,0,512,6],[512,7,512,29],[512,30,512,32],[512,33,512,38],[512,39,512,44],[513,0,513,6],[513,7,513,29],[513,30,513,32],[513,33,513,38],[513,39,513,44],[514,0,514,6],[514,7,514,29],[514,30,514,32],[514,33,514,38],[514,39,514,44],[515,0,515,6],[515,7,515,29],[515,30,515,32],[515,33,515,38],[515,39,515,44],[508,0,508,6],[508,7,508,29],[508,30,508,32],[508,33,508,38],[508,39,508,44],[509,0,509,6],[509,7,509,29],[509,30,509,32],[509,33,509,38],[509,39,509,44],[510,0,510,6],[510,7,510,29],[510,30,510,32],[510,33,510,38],[510,39,510,44],[511,0,511,6],[511,7,511,29],[511,30,511,32],[511,33,511,38],[511,39,511,44],[504,0,504,6],[504,7,504,29],[504,30,504,32],[504,33,504,38],[504,39,504,44],[505,0,505,6],[505,7,505,29],[505,30,505,32],[505,33,505,38],[505,39,505,44],[506,0,506,6],[506,7,506,29],[506,30,506,32],[506,33,506,38],[506,39,506,44],[507,0,507,6],[507,7,507,29],[507,30,507,32],[507,33,507,38],[507,39,507,44],[500,30,500,32],[500,33,500,38],[500,39,500,44],[501,0,501,6],[501,7,501,29],[501,30,501,32],[501,33,501,38],[501,39,501,44],[502,0,502,6],[502,7,502,29],[502,30,502,32],[502,33,502,38],[502,39,502,44],[503,0,503,6],[503,7,503,29],[503,30,503,32],[503,33,503,38],[503,39,503,44],[474,0,474,6],[474,7,474,12],[474,13,474,18],[474,19,474,25],[474,26,474,32],[474,33,474,38],[474,39,474,44],[475,0,475,6],[475,7,475,12],[475,13,475,18],[475,19,475,25],[475,26,475,32],[475,33,475,38],[475,39,475,44],[498,0,498,6],[498,7,498,29],[498,30,498,32],[498,33,498,38],[498,39,498,44],[492,30,492,32],[492,33,492,38],[492,39,492,44],[493,0,493,6],[493,7,493,29],[493,30,493,32],[493,33,493,38],[493,39,493,44],[494,0,494,6],[494,7,494,29],[494,30,494,32],[494,33,494,38],[494,39,494,44],[471,0,471,6],[471,7,471,12],[471,13,471,18],[471,19,471,25],[471,26,471,32],[471,33,471,38],[471,39,471,44],[472,0,472,6],[472,7,472,12],[472,13,472,18],[472,19,472,25],[472,26,472,32],[472,33,472,38],[472,39,472,44],[473,0,473,6],[473,7,473,12],[473,13,473,18],[473,19,473,25],[473,26,473,32],[473,33,473,38],[473,39,473,44],[468,0,468,6],[468,7,468,12],[468,13,468,18],[468,19,468,25],[468,26,468,32],[468,33,468,38],[468,39,468,44],[469,0,469,6],[469,7,469,12],[469,13,469,18],[469,19,469,25],[469,26,469,32],[469,33,469,38],[469,39,469,44],[470,0,470,6],[470,7,470,12],[470,13,470,18],[470,19,470,25],[470,26,470,32],[470,33,470,38],[470,39,470,44],[465,0,465,6],[465,7,465,12],[465,13,465,18],[465,19,465,25],[465,26,465,32],[465,33,465,38],[465,39,465,44],[466,0,466,6],[466,7,466,12],[466,13,466,18],[466,19,466,25],[466,26,466,32],[466,33,466,38],[466,39,466,44],[467,0,467,6],[467,7,467,12],[467,13,467,18],[467,19,467,25],[467,26,467,32],[467,33,467,38],[467,39,467,44],[462,0,462,6],[462,7,462,12],[462,13,462,18],[462,19,462,25],[462,26,462,32],[462,33,462,38],[462,39,462,44],[463,0,463,6],[463,7,463,12],[463,13,463,18],[463,19,463,25],[463,26,463,32],[463,33,463,38],[463,39,463,44],[464,0,464,6],[464,7,464,12],[464,13,464,18],[464,19,464,25],[464,26,464,32],[464,33,464,38],[464,39,464,44],[459,0,459,6],[459,7,459,12],[459,13,459,18],[459,19,459,25],[459,26,459,32],[459,33,459,38],[459,39,459,44],[460,0,460,6],[460,7,460,12],[460,13,460,18],[460,19,460,25],[460,26,460,32],[460,33,460,38],[460,39,460,44],[461,0,461,6],[461,7,461,12],[461,13,461,18],[461,19,461,25],[461,26,461,32],[461,33,461,38],[461,39,461,44],[456,0,456,6],[456,7,456,12],[456,13,456,18],[456,19,456,25],[456,26,456,32],[456,33,456,38],[456,39,456,44],[457,0,457,6],[457,7,457,12],[457,13,457,18],[457,19,457,25],[457,26,457,32],[457,33,457,38],[457,39,457,44],[458,0,458,6],[458,7,458,12],[458,13,458,18],[458,19,458,25],[458,26,458,32],[458,33,458,38],[458,39,458,44],[452,0,452,6],[452,7,452,12],[452,13,452,18],[452,19,452,25],[452,26,452,32],[452,33,452,38],[452,39,452,44],[453,0,453,6],[453,7,453,12],[453,13,453,18],[453,19,453,25],[453,26,453,32],[453,33,453,38],[453,39,453,44],[454,0,454,6],[454,7,454,12],[454,13,454,18],[454,19,454,25],[454,26,454,32],[454,33,454,38],[454,39,454,44],[449,0,449,6],[449,7,449,12],[449,13,449,18],[449,19,449,25],[449,26,449,32],[449,33,449,38],[449,39,449,44],[450,0,450,6],[450,7,450,12],[450,13,450,18],[450,19,450,25],[450,26,450,32],[450,33,450,38],[450,39,450,44],[451,0,451,6],[451,7,451,12],[451,13,451,18],[451,19,451,25],[451,26,451,32],[451,33,451,38],[451,39,451,44],[446,26,446,32],[446,33,446,38],[446,39,446,44],[447,0,447,6],[447,7,447,12],[447,13,447,18],[447,19,447,25],[447,26,447,32],[447,33,447,38],[447,39,447,44],[448,0,448,6],[448,7,448,12],[448,13,448,18],[448,19,448,25],[448,26,448,32],[448,33,448,38],[448,39,448,44],[194,0,194,4],[194,5,194,29],[194,30,194,32],[194,33,194,35],[194,36,194,39],[194,40,194,44],[195,0,195,4],[195,5,195,29],[195,30,195,32],[195,33,195,35],[195,36,195,39],[195,40,195,44],[445,0,445,6],[445,7,445,12],[445,13,445,18],[445,19,445,25],[445,26,445,32],[445,33,445,38],[445,39,445,44],[207,40,207,44],[208,0,208,4],[208,5,208,29],[208,30,208,32],[208,33,208,35],[208,36,208,39],[208,40,208,44],[209,0,209,4],[209,5,209,29],[209,30,209,32],[209,33,209,35],[209,36,209,39],[209,40,209,44],[191,0,191,4],[191,5,191,29],[191,30,191,32],[191,33,191,35],[191,36,191,39],[191,40,191,44],[192,0,192,4],[192,5,192,29],[192,30,192,32],[192,33,192,35],[192,36,192,39],[192,40,192,44],[193,0,193,4],[193,5,193,29],[193,30,193,32],[193,33,193,35],[193,36,193,39],[193,40,193,44],[188,0,188,4],[188,5,188,29],[188,30,188,32],[188,33,188,35],[188,36,188,39],[188,40,188,44],[189,0,189,4],[189,5,189,29],[189,30,189,32],[189,33,189,35],[189,36,189,39],[189,40,189,44],[190,0,190,4],[190,5,190,29],[190,30,190,32],[190,33,190,35],[190,36,190,39],[190,40,190,44],[185,0,185,4],[185,5,185,29],[185,30,185,32],[185,33,185,35],[185,36,185,39],[185,40,185,44],[186,0,186,4],[186,5,186,29],[186,30,186,32],[186,33,186,35],[186,36,186,39],[186,40,186,44],[187,0,187,4],[187,5,187,29],[187,30,187,32],[187,33,187,35],[187,36,187,39],[187,40,187,44],[425,0,425,5],[425,6,425,28],[425,29,425,31],[425,32,425,34],[425,35,425,39],[425,40,425,44],[201,0,201,4],[201,5,201,29],[201,30,201,32],[201,33,201,35],[201,36,201,39],[201,40,201,44],[202,0,202,4],[202,5,202,29],[202,30,202,32],[202,33,202,35],[202,36,202,39],[202,40,202,44],[203,0,203,4],[203,5,203,29],[203,30,203,32],[203,33,203,35],[203,36,203,39],[203,40,203,44],[204,0,204,4],[204,5,204,29],[204,30,204,32],[204,33,204,35],[204,36,204,39],[204,40,204,44],[205,0,205,4],[205,5,205,29],[423,29,423,31],[423,32,423,34],[423,35,423,39],[423,40,423,44],[416,0,416,5],[416,6,416,28],[416,29,416,31],[416,32,416,34],[416,35,416,39],[416,40,416,44],[417,0,417,5],[417,6,417,28],[417,29,417,31],[417,32,417,34],[417,35,417,39],[417,40,417,44],[418,0,418,5],[418,6,418,28],[424,0,424,5],[424,6,424,28],[424,29,424,31],[424,32,424,34],[424,35,424,39],[424,40,424,44],[419,0,419,5],[419,6,419,28],[419,29,419,31],[419,32,419,34],[419,35,419,39],[419,40,419,44],[420,0,420,5],[420,6,420,28],[420,29,420,31],[420,32,420,34],[420,35,420,39],[420,40,420,44],[421,0,421,5],[421,6,421,28],[421,29,421,31],[421,32,421,34],[421,35,421,39],[421,40,421,44],[422,0,422,5],[422,6,422,28],[422,29,422,31],[422,32,422,34],[422,35,422,39],[422,40,422,44],[423,0,423,5],[423,6,423,28],[412,0,412,5],[412,6,412,28],[412,29,412,31],[412,32,412,34],[412,35,412,39],[412,40,412,44],[418,29,418,31],[418,32,418,34],[418,35,418,39],[418,40,418,44],[413,0,413,5],[413,6,413,28],[413,29,413,31],[413,32,413,34],[413,35,413,39],[413,40,413,44],[414,0,414,5],[414,6,414,28],[414,29,414,31],[414,32,414,34],[414,35,414,39],[414,40,414,44],[415,0,415,5],[415,6,415,28],[415,29,415,31],[415,32,415,34],[415,35,415,39],[415,40,415,44],[408,35,408,39],[408,40,408,44],[409,0,409,5],[409,6,409,28],[409,29,409,31],[409,32,409,34],[409,35,409,39],[409,40,409,44],[410,0,410,5],[410,6,410,28],[410,29,410,31],[410,32,410,34],[410,35,410,39],[410,40,410,44],[411,0,411,5],[411,6,411,28],[411,29,411,31],[411,32,411,34],[411,35,411,39],[411,40,411,44],[344,0,344,5],[344,6,344,28],[344,29,344,31],[344,32,344,34],[344,35,344,39],[344,40,344,44],[345,0,345,5],[345,6,345,28],[345,29,345,31],[345,32,345,34],[345,35,345,39],[345,40,345,44],[406,0,406,5],[406,6,406,28],[406,29,406,31],[406,32,406,34],[406,35,406,39],[406,40,406,44],[404,35,404,39],[404,40,404,44],[405,6,405,28],[405,29,405,31],[405,32,405,34],[405,35,405,39],[405,40,405,44],[348,29,348,31],[348,32,348,34],[348,35,348,39],[348,40,348,44],[405,0,405,5],[402,35,402,39],[402,40,402,44],[341,0,341,5],[341,6,341,28],[341,29,341,31],[341,32,341,34],[341,35,341,39],[341,40,341,44],[342,0,342,5],[342,6,342,28],[342,29,342,31],[342,32,342,34],[342,35,342,39],[342,40,342,44],[343,0,343,5],[343,6,343,28],[343,29,343,31],[343,32,343,34],[343,35,343,39],[343,40,343,44],[338,0,338,5],[338,6,338,28],[338,29,338,31],[338,32,338,34],[338,35,338,39],[338,40,338,44],[339,0,339,5],[339,6,339,28],[339,29,339,31],[339,32,339,34],[339,35,339,39],[339,40,339,44],[340,0,340,5],[340,6,340,28],[340,29,340,31],[340,32,340,34],[340,35,340,39],[340,40,340,44],[337,0,337,5],[337,6,337,28],[337,29,337,31],[337,32,337,34],[337,35,337,39],[337,40,337,44],[205,30,205,32],[205,33,205,35],[205,36,205,39],[205,40,205,44],[206,0,206,4],[206,5,206,29],[206,30,206,32],[206,33,206,35],[206,36,206,39],[206,40,206,44],[207,0,207,4],[207,5,207,29],[207,30,207,32],[207,33,207,35],[210,0,210,4],[210,5,210,29],[210,30,210,32],[210,33,210,35],[210,36,210,39],[210,40,210,44],[215,40,215,44],[216,40,216,44],[217,40,217,44],[218,40,218,44],[219,40,219,44],[220,40,220,44],[106,0,106,1],[106,2,106,4],[106,5,106,32],[106,33,106,35],[106,36,106,39],[106,40,106,44],[107,0,107,1],[107,2,107,4],[107,5,107,32],[107,33,107,35],[107,36,107,39],[107,40,107,44],[336,0,336,5],[336,6,336,28],[336,29,336,31],[336,32,336,34],[336,35,336,39],[336,40,336,44],[178,40,178,44],[179,0,179,4],[179,5,179,29],[179,30,179,32],[179,33,179,35],[179,36,179,39],[179,40,179,44],[180,0,180,4],[180,5,180,29],[180,30,180,32],[180,33,180,35],[180,36,180,39],[180,40,180,44],[181,0,181,4],[103,0,103,1],[103,2,103,4],[103,5,103,32],[103,33,103,35],[103,36,103,39],[103,40,103,44],[104,0,104,1],[104,2,104,4],[104,5,104,32],[104,33,104,35],[104,36,104,39],[104,40,104,44],[105,0,105,1],[105,2,105,4],[105,5,105,32],[105,33,105,35],[105,36,105,39],[105,40,105,44],[100,0,100,1],[100,2,100,4],[100,5,100,32],[100,33,100,35],[100,36,100,39],[100,40,100,44],[101,0,101,1],[101,2,101,4],[101,5,101,32],[101,33,101,35],[101,36,101,39],[101,40,101,44],[102,0,102,1],[102,2,102,4],[102,5,102,32],[102,33,102,35],[102,36,102,39],[102,40,102,44],[97,0,97,1],[97,2,97,4],[97,5,97,32],[97,33,97,35],[97,36,97,39],[97,40,97,44],[98,0,98,1],[98,2,98,4],[98,5,98,32],[98,33,98,35],[98,36,98,39],[98,40,98,44],[99,0,99,1],[99,2,99,4],[99,5,99,32],[99,33,99,35],[99,36,99,39],[99,40,99,44],[94,0,94,1],[94,2,94,4],[94,5,94,32],[94,33,94,35],[94,36,94,39],[94,40,94,44],[95,0,95,1],[95,2,95,4],[95,5,95,32],[95,33,95,35],[95,36,95,39],[95,40,95,44],[96,0,96,1],[96,2,96,4],[96,5,96,32],[96,33,96,35],[96,36,96,39],[96,40,96,44],[91,0,91,1],[91,2,91,4],[91,5,91,32],[91,33,91,35],[91,36,91,39],[91,40,91,44],[92,0,92,1],[92,2,92,4],[92,5,92,32],[92,33,92,35],[92,36,92,39],[92,40,92,44],[93,0,93,1],[93,2,93,4],[93,5,93,32],[93,33,93,35],[93,36,93,39],[93,40,93,44],[88,0,88,1],[88,2,88,4],[88,5,88,32],[88,33,88,35],[88,36,88,39],[88,40,88,44],[89,0,89,1],[89,2,89,4],[89,5,89,32],[89,33,89,35],[89,36,89,39],[89,40,89,44],[90,0,90,1],[90,2,90,4],[90,5,90,32],[90,33,90,35],[90,36,90,39],[90,40,90,44],[85,0,85,1],[85,2,85,4],[85,5,85,32],[85,33,85,35],[85,36,85,39],[85,40,85,44],[86,0,86,1],[86,2,86,4],[86,5,86,32],[86,33,86,35],[86,36,86,39],[86,40,86,44],[87,0,87,1],[87,2,87,4],[87,5,87,32],[87,33,87,35],[87,36,87,39],[87,40,87,44],[81,36,81,39],[81,40,81,44],[82,0,82,1],[82,2,82,4],[82,5,82,32],[82,33,82,35],[82,36,82,39],[82,40,82,44],[83,0,83,1],[83,2,83,4],[83,5,83,32],[83,33,83,35],[83,36,83,39],[83,40,83,44],[84,0,84,1],[84,2,84,4],[84,5,84,32],[84,33,84,35],[84,36,84,39],[84,40,84,44],[540,0,540,44],[535,7,535,29],[535,30,535,32],[535,33,535,38],[535,39,535,44],[536,0,536,6],[349,32,349,34],[349,35,349,39],[349,40,349,44],[350,6,350,28],[350,29,350,31],[350,32,350,34],[350,35,350,39],[350,40,350,44],[426,6,426,28],[426,29,426,31],[426,32,426,34],[426,35,426,39],[426,40,426,44],[497,7,497,29],[497,30,497,32],[497,33,497,38],[497,39,497,44],[528,0,528,6],[528,7,528,29],[349,6,349,28],[349,29,349,31],[533,7,533,29],[533,30,533,32],[533,33,533,38],[533,39,533,44],[534,0,534,6],[403,29,403,31],[403,32,403,34],[403,35,403,39],[403,40,403,44],[404,6,404,28],[404,29,404,31],[404,32,404,34],[532,33,532,38],[532,39,532,44],[529,0,529,6],[529,7,529,29],[529,30,529,32],[529,33,529,38],[529,39,529,44],[530,0,530,6],[530,7,530,29],[530,30,530,32],[530,33,530,38],[530,39,530,44],[497,0,497,6],[407,0,407,5],[407,6,407,28],[407,29,407,31],[407,32,407,34],[407,35,407,39],[407,40,407,44],[408,0,408,5],[408,6,408,28],[408,29,408,31],[489,30,489,32],[489,33,489,38],[408,32,408,34],[751,0,751,5],[751,6,751,12],[751,13,751,17],[751,18,751,22],[751,23,751,28],[751,29,751,33],[751,34,751,39],[751,40,751,44],[770,25,770,34],[227,32,227,34],[227,40,227,44],[328,40,328,44],[328,32,328,34],[227,35,227,39],[328,35,328,39],[227,6,227,28],[328,6,328,28],[329,6,329,28],[329,29,329,31],[329,32,329,34],[329,35,329,39],[329,40,329,44],[330,6,330,28],[330,29,330,31],[330,32,330,34],[330,35,330,39],[330,40,330,44],[331,6,331,28],[331,29,331,31],[331,32,331,34],[331,35,331,39],[403,6,403,28],[749,0,749,5],[749,6,749,12],[749,13,749,17],[749,18,749,22],[749,23,749,28],[749,29,749,33],[749,34,749,39],[749,40,749,44],[753,0,753,5],[753,6,753,12],[753,13,753,17],[753,18,753,22],[753,23,753,28],[753,29,753,33],[753,34,753,39],[753,40,753,44],[754,0,754,5],[754,6,754,12],[754,13,754,17],[754,18,754,22],[754,23,754,28],[754,29,754,33],[754,34,754,39],[754,40,754,44],[750,0,750,5],[750,6,750,12],[750,13,750,17],[750,18,750,22],[750,23,750,28],[750,29,750,33],[750,34,750,39],[750,40,750,44],[746,0,746,5],[746,6,746,12],[746,13,746,17],[746,18,746,22],[746,23,746,28],[746,29,746,33],[746,34,746,39],[746,40,746,44]],"merged_total":4464,"flags":["merged_cut"]}
[]
[]
[]
[]
[]
["DADOS DO ASSOCIADO",null,null,null,null,null,null,null,null,null,null,null,null,null,null,null,null,null,null,null,null,null,null,null,null,null,null,null,null,null,null,null,null,null,null,null,null,null,null,null,null,null,null,null,null,{"$f":"IF(OR(F10=\"\",AJ10=\"\",F12=\"\",AH12=\"\",G14=\"\",R14=\"\",AC14=\"\"),\"AUSENTE\",\"OK\")","v":"AUSENTE"}]
[]
["TIPO DE PESSOA:",null,null,null,null,null,"FÍSICA"]
[]
["NOME:",null,null,null,null,null,null,null,null,null,null,null,null,null,null,null,null,null,null,null,null,null,null,null,null,null,null,null,null,null,null,null,"CPF:"]
[]
["ENDEREÇO:",null,null,null,null,null,null,null,null,null,null,null,null,null,null,null,null,null,null,null,null,null,null,null,null,null,null,null,null,"CIDADE:"]
[]
["TELEFONES:",null,null,null,null,null,null,null,null,null,null,null,null,null,null,null,null,null,null,null,null,null,null,null,"EMAIL:"]
[]
["NÍVEL DE ESCOLARIDADE:",null,null,null,null,null,null,null,null,null,null,null,null,null,null,null,null,null,null,null,null,null,null,null,null,null,null,null,null,null,"ESTADO CIVIL:"]
[]
["NOME DO CÔNJUGE:",null,null,null,null,null,null,null,null,null,null,null,null,null,null,null,null,null,null,null,null,null,null,null,null,null,null,null,null,null,null,null,"CPF:"]
[]
[]
["NOME:",null,null,null,null,null,null,null,null,null,null,null,null,null,null,null,null,null,null,null,null,null,null,null,null,null,null,null,null,null,null,null,"CNPJ:"]
[]
["ENDEREÇO:",null,null,null,null,null,null,null,null,null,null,null,null,null,null,null,null,null,null,null,null,null,null,null,null,null,null,null,null,"CIDADE:"]
[]
["CONTA CORRENTE:",null,null,null,null,null,null,null,null,null,null,null,"TELEFONE:",null,null,null,null,null,null,null,null,null,null,null,"EMAIL:"]
[]
["TIPO EMPRESA:",null,null,null,null,null,null,null,null,null,null,null,null,null,null,null,null,null,null,"CAPITAL SOCIAL:"]
[]
["QUADRO SOCIETÁRIO"]
[]
["SÓCIOS"]
["RELACIONAMENTO",null,null,null,null,null,null,null,"NOME",null,null,null,null,null,null,null,null,null,null,null,null,null,null,null,null,null,null,null,null,null,"CPF / CNPJ",null,null,null,null,null,"PERCENTUAL DO CAPITAL SOCIAL (%)"]
[null,null,null,null,null,null,null,null,null,null,null,null,null,null,null,null,null,null,null,null,null,null,null,null,null,null,null,null,null,null,null,null,null,null,null,null,null,null,null,null,null,null,null,null,null,null,{"$f":"SUM(AV32:AV51)","v":2},1]
[null,null,null,null,null,null,null,null,null,null,null,null,null,null,null,null,null,null,null,null,null,null,null,null,null,null,null,null,null,null,null,null,null,null,null,null,null,null,null,null,null,null,null,null,null,null,null,1]
[]
[]
[]
[]
[]
[]
[]
[]
[]
[]
[]
[]
[]
[]
[]
[]
[]
[]
["REPONSÁVEL PELO LEVANTAMENTO",null,null,null,null,null,null,null,null,null,null,null,null,null,null,null,null,null,null,null,null,null,null,null,null,null,null,null,null,null,null,null,null,null,null,null,null,null,null,null,null,null,null,null,null,{"$f":"IF(OR(F55=\"\",AI55=\"\",F57=\"\",AH57=\"\",F59=\"\",X59=\"\",H61=\"\",AI61=\"\"),\"AUSENTE\",\"OK\")","v":"AUSENTE"}]
[]
["ELABORADOR:",null,null,null,null,null,null,null,null,null,null,null,null,null,null,null,null,null,null,null,null,null,null,null,null,null,null,null,null,null,"CPF/CNPJ:",null,null,null,{"$f":"IFERROR(VLOOKUP(F55,'EMPRESAS ELABORADORAS'!A2:F11,2,0),\"-\")","v":"-"}]
[]
["ENDEREÇO:",null,null,null,null,{"$f":"IFERROR(VLOOKUP(F55,'EMPRESAS ELABORADORAS'!A2:F11,3,0),\"-\")","v":"-"},null,null,null,null,null,null,null,null,null,null,null,null,null,null,null,null,null,null,null,null,null,null,null,"CIDADE:",null,null,null,{"$f":"IFERROR(VLOOKUP(F55,'EMPRESAS ELABORADORAS'!A2:F11,4,0),\"-\")","v":"-"}]
[]
["TELEFONE:",null,null,null,null,{"$f":"IFERROR(VLOOKUP(F55,'EMPRESAS ELABORADORAS'!A2:F11,5,0),\"-\")","v":"-"},null,null,null,null,null,null,null,null,null,null,null,null,null,"EMAIL:",null,null,null,{"$f":"IFERROR(VLOOKUP(F55,'EMPRESAS ELABORADORAS'!A2:F11,6,0),\"-\")","v":"-"}]
[]
["RESP. TÉCNICO:",null,null,null,null,null,null,null,null,null,null,null,null,null,null,null,null,null,null,null,null,null,null,null,null,null,null,null,null,null,"CREA / CFTA:"]
[]
["LEVANTAMENTO PATRIMONIAL",null,null,null,null,null,null,null,null,null,null,null,null,null,null,null,null,null,null,null,null,null,null,null,null,null,null,null,null,null,null,null,null,null,null,null,null,null,null,null,null,null,null,null,null,{"$f":"IF(OR(F65=\"\",AI65=\"\",F68=\"\",AH68=\"\",F70=\"\",X70=\"\",H72=\"\",AI72=\"\"),\"AUSENTE\",\"OK\")","v":"AUSENTE"}]
[]
["BENS IMÓVEIS"]
[]
["IMÓVEIS RURAIS E URBANOS"]
["REF",null,"TIPO",null,null,"DESCRIÇÃO",null,null,null,null,null,null,null,null,null,null,null,null,null,null,null,null,null,null,null,null,null,null,null,null,null,null,null,"PART.\n%",null,null,"VALOR BEM\n (R$)",null,null,null,"VALOR %\n(R$)"]
[{"$f":"IF(C69<>\"\",1,\"\")","v":""},null,null,null,null,null,null,null,null,null,null,null,null,null,null,null,null,null,null,null,null,null,null,null,null,null,null,null,null,null,null,null,null,null,null,null,null,null,null,null,{"$f":"IF(OR(AH69=\"\",AK69=\"\"),\"\",AK69*AH69)","v":""},null,null,null,null,null,{"$f":"SUM(AV69:AV168)","v":1},1,null,{"$f":"IF(A69<>\"\",_xlfn.CONCAT(\"IMÓVEL \",A69),\"\")","v":""},{"$f":"_xlfn.CONCAT(\"AX69:AX\"&(69+CONT_IMOVEIS-1))","v":"AX69:AX69"}]
[{"$f":"IF(C70<>\"\",A69+1,\"\")","v":""},null,null,null,null,null,null,null,null,null,null,null,null,null,null,null,null,null,null,null,null,null,null,null,null,null,null,null,null,null,null,null,null,null,null,null,null,null,null,null,{"$f":"IF(OR(AH70=\"\",AK70=\"\"),\"\",AK70*AH70)","v":""},null,null,null,null,null,null,null,null,{"$f":"IF(A70<>\"\",_xlfn.CONCAT(\"IMÓVEL \",A70),\"\")","v":""}]
[{"$f":"IF(C71<>\"\",A70+1,\"\")","v":""},null,null,null,null,null,null,null,null,null,null,null,null,null,null,null,null,null,null,null,null,null,null,null,null,null,null,null,null,null,null,null,null,null,null,null,null,null,null,null,{"$f":"IF(OR(AH71=\"\",AK71=\"\"),\"\",AK71*AH71)","v":""},null,null,null,null,null,null,null,null,""]
["",null,null,null,null,null,null,null,null,null,null,null,null,null,null,null,null,null,null,null,null,null,null,null,null,null,null,null,null,null,null,null,null,null,null,null,null,null,null,null,"",null,null,null,null,null,null,null,null,""]
["",null,null,null,null,null,null,null,null,null,null,null,null,null,null,null,null,null,null,null,null,null,null,null,null,null,null,null,null,null,null,null,null,null,null,null,null,null,null,null,"",null,null,null,null,null,null,null,null,""]
["",null,null,null,null,null,null,null,null,null,null,null,null,null,null,null,null,null,null,null,null,null,null,null,null,null,null,null,null,null,null,null,null,null,null,null,null,null,null,null,"",null,null,null,null,null,null,null,null,""]
["",null,null,null,null,null,null,null,null,null,null,null,null,null,null,null,null,null,null,null,null,null,null,null,null,null,null,null,null,null,null,null,null,null,null,null,null,null,null,null,"",null,null,null,null,null,null,null,null,""]
["",null,null,null,null,null,null,null,null,null,null,null,null,null,null,null,null,null,null,null,null,null,null,null,null,null,null,null,null,null,null,null,null,null,null,null,null,null,null,null,"",null,null,null,null,null,null,null,null,""]
["",null,null,null,null,null,null,null,null,null,null,null,null,null,null,null,null,null,null,null,null,null,null,null,null,null,null,null,null,null,null,null,null,null,null,null,null,null,null,null,"",null,null,null,null,null,null,null,null,""]
["",null,null,null,null,null,null,null,null,null,null,null,null,null,null,null,null,null,null,null,null,null,null,null,null,null,null,null,null,null,null,null,null,null,null,null,null,null,null,null,"",null,null,null,null,null,null,null,null,""]
["",null,null,null,null,null,null,null,null,null,null,null,null,null,null,null,null,null,null,null,null,null,null,null,null,null,null,null,null,null,null,null,null,null,null,null,null,null,null,null,"",null,null,null,null,null,null,null,null,""]
["",null,null,null,null,null,null,null,null,null,null,null,null,null,null,null,null,null,null,null,null,null,null,null,null,null,null,null,null,null,null,null,null,null,null,null,null,null,null,null,"",null,null,null,null,null,null,null,null,""]
["",null,null,null,null,null,null,null,null,null,null,null,null,null,null,null,null,null,null,null,null,null,null,null,null,null,null,null,null,null,null,null,null,null,null,null,null,null,null,null,"",null,null,null,null,null,null,null,null,""]
["",null,null,null,null,null,null,null,null,null,null,null,null,null,null,null,null,null,null,null,null,null,null,null,null,null,null,null,null,null,null,null,null,null,null,null,null,null,null,null,"",null,null,null,null,null,null,null,null,""]
["",null,null,null,null,null,null,null,null,null,null,null,null,null,null,null,null,null,null,null,null,null,null,null,null,null,null,null,null,null,null,null,null,null,null,null,null,null,null,null,"",null,null,null,null,null,null,null,null,""]
["",null,null,null,null,null,null,null,null,null,null,null,null,null,null,null,null,null,null,null,null,null,null,null,null,null,null,null,null,null,null,null,null,null,null,null,null,null,null,null,"",null,null,null,null,null,null,null,null,""]
["",null,null,null,null,null,null,null,null,null,null,null,null,null,null,null,null,null,null,null,null,null,null,null,null,null,null,null,null,null,null,null,null,null,null,null,null,null,null,null,"",null,null,null,null,null,null,null,null,""]
["",null,null,null,null,null,null,null,null,null,null,null,null,null,null,null,null,null,null,null,null,null,null,null,null,null,null,null,null,null,null,null,null,null,null,null,null,null,null,null,"",null,null,null,null,null,null,null,null,""]
["",null,null,null,null,null,null,null,null,null,null,null,null,null,null,null,null,null,null,null,null,null,null,null,null,null,null,null,null,null,null,null,null,null,null,null,null,null,null,null,"",null,null,null,null,null,null,null,null,""]
["",null,null,null,null,null,null,null,null,null,null,null,null,null,null,null,null,null,null,null,null,null,null,null,null,null,null,null,null,null,null,null,null,null,null,null,null,null,null,null,"",null,null,null,null,null,null,null,null,""]
["",null,null,null,null,null,null,null,null,null,null,null,null,null,null,null,null,null,null,null,null,null,null,null,null,null,null,null,null,null,null,null,null,null,null,null,null,null,null,null,"",null,null,null,null,null,null,null,null,""]
["",null,null,null,null,null,null,null,null,null,null,null,null,null,null,null,null,null,null,null,null,null,null,null,null,null,null,null,null,null,null,null,null,null,null,null,null,null,null,null,"",null,null,null,null,null,null,null,null,""]
["",null,null,null,null,null,null,null,null,null,null,null,null,null,null,null,null,null,null,null,null,null,null,null,null,null,null,null,null,null,null,null,null,null,null,null,null,null,null,null,"",null,null,null,null,null,null,null,null,""]
["",null,null,null,null,null,null,null,null,null,null,null,null,null,null,null,null,null,null,null,null,null,null,null,null,null,null,null,null,null,null,null,null,null,null,null,null,null,null,null,"",null,null,null,null,null,null,null,null,""]
["",null,null,null,null,null,null,null,null,null,null,null,null,null,null,null,null,null,null,null,null,null,null,null,null,null,null,null,null,null,null,null,null,null,null,null,null,null,null,null,"",null,null,null,null,null,null,null,null,""]
["",null,null,null,null,null,null,null,null,null,null,null,null,null,null,null,null,null,null,null,null,null,null,null,null,null,null,null,null,null,null,null,null,null,null,null,null,null,null,null,"",null,null,null,null,null,null,null,null,""]
["",null,null,null,null,null,null,null,null,null,null,null,null,null,null,null,null,null,null,null,null,null,null,null,null,null,null,null,null,null,null,null,null,null,null,null,null,null,null,null,"",null,null,null,null,null,null,null,null,""]
["",null,null,null,null,null,null,null,null,null,null,null,null,null,null,null,null,null,null,null,null,null,null,null,null,null,null,null,null,null,null,null,null,null,null,null,null,null,null,null,"",null,null,null,null,null,null,null,null,""]
["",null,null,null,null,null,null,null,null,null,null,null,null,null,null,null,null,null,null,null,null,null,null,null,null,null,null,null,null,null,null,null,null,null,null,null,null,null,null,null,"",null,null,null,null,null,null,null,null,""]
["",null,null,null,null,null,null,null,null,null,null,null,null,null,null,null,null,null,null,null,null,null,null,null,null,null,null,null,null,null,null,null,null,null,null,null,null,null,null,null,"",null,null,null,null,null,null,null,null,""]
["",null,null,null,null,null,null,null,null,null,null,null,null,null,null,null,null,null,null,null,null,null,null,null,null,null,null,null,null,null,null,null,null,null,null,null,null,null,null,null,"",null,null,null,null,null,null,null,null,""]
["",null,null,null,null,null,null,null,null,null,null,null,null,null,null,null,null,null,null,null,null,null,null,null,null,null,null,null,null,null,null,null,null,null,null,null,null,null,null,null,"",null,null,null,null,null,null,null,null,""]
["",null,null,null,null,null,null,null,null,null,null,null,null,null,null,null,null,null,null,null,null,null,null,null,null,null,null,null,null,null,null,null,null,null,null,null,null,null,null,null,"",null,null,null,null,null,null,null,null,""]
["",null,null,null,null,null,null,null,null,null,null,null,null,null,null,null,null,null,null,null,null,null,null,null,null,null,null,null,null,null,null,null,null,null,null,null,null,null,null,null,"",null,null,null,null,null,null,null,null,""]
["",null,null,null,null,null,null,null,null,null,null,null,null,null,null,null,null,null,null,null,null,null,null,null,null,null,null,null,null,null,null,null,null,null,null,null,null,null,null,null,"",null,null,null,null,null,null,null,null,""]
["",null,null,null,null,null,null,null,null,null,null,null,null,null,null,null,null,null,null,null,null,null,null,null,null,null,null,null,null,null,null,null,null,null,null,null,null,null,null,null,"",null,null,null,null,null,null,null,null,""]
["",null,null,null,null,null,null,null,null,null,null,null,null,null,null,null,null,null,null,null,null,null,null,null,null,null,null,null,null,null,null,null,null,null,null,null,null,null,null,null,"",null,null,null,null,null,null,null,null,""]
["",null,null,null,null,null,null,null,null,null,null,null,null,null,null,null,null,null,null,null,null,null,null,null,null,null,null,null,null,null,null,null,null,null,null,null,null,null,null,null,"",null,null,null,null,null,null,null,null,""]
["",null,null,null,null,null,null,null,null,null,null,null,null,null,null,null,null,null,null,null,null,null,null,null,null,null,null,null,null,null,null,null,null,null,null,null,null,null,null,null,"",null,null,null,null,null,null,null,null,""]
["",null,null,null,null,null,null,null,null,null,null,null,null,null,null,null,null,null,null,null,null,null,null,null,null,null,null,null,null,null,null,null,null,null,null,null,null,null,null,null,"",null,null,null,null,null,null,null,null,""]
["",null,null,null,null,null,null,null,null,null,null,null,null,null,null,null,null,null,null,null,null,null,null,null,null,null,null,null,null,null,null,null,null,null,null,null,null,null,null,null,"",null,null,null,null,null,null,null,null,""]
["",null,null,null,null,null,null,null,null,null,null,null,null,null,null,null,null,null,null,null,null,null,null,null,null,null,null,null,null,null,null,null,null,null,null,null,null,null,null,null,"",null,null,null,null,null,null,null,null,""]
["",null,null,null,null,null,null,null,null,null,null,null,null,null,null,null,null,null,null,null,null,null,null,null,null,null,null,null,null,null,null,null,null,null,null,null,null,null,null,null,"",null,null,null,null,null,null,null,null,""]
["",null,null,null,null,null,null,null,null,null,null,null,null,null,null,null,null,null,null,null,null,null,null,null,null,null,null,null,null,null,null,null,null,null,null,null,null,null,null,null,"",null,null,null,null,null,null,null,null,""]
["",null,null,null,null,null,null,null,null,null,null,null,null,null,null,null,null,null,null,null,null,null,null,null,null,null,null,null,null,null,null,null,null,null,null,null,null,null,null,null,"",null,null,null,null,null,null,null,null,""]
["",null,null,null,null,null,null,null,null,null,null,null,null,null,null,null,null,null,null,null,null,null,null,null,null,null,null,null,null,null,null,null,null,null,null,null,null,null,null,null,"",null,null,null,null,null,null,null,null,""]
["",null,null,null,null,null,null,null,null,null,null,null,null,null,null,null,null,null,null,null,null,null,null,null,null,null,null,null,null,null,null,null,null,null,null,null,null,null,null,null,"",null,null,null,null,null,null,null,null,""]
["",null,null,null,null,null,null,null,null,null,null,null,null,null,null,null,null,null,null,null,null,null,null,null,null,null,null,null,null,null,null,null,null,null,null,null,null,null,null,null,"",null,null,null,null,null,null,null,null,""]
["",null,null,null,null,null,null,null,null,null,null,null,null,null,null,null,null,null,null,null,null,null,null,null,null,null,null,null,null,null,null,null,null,null,null,null,null,null,null,null,"",null,null,null,null,null,null,null,null,""]
["",null,null,null,null,null,null,null,null,null,null,null,null,null,null,null,null,null,null,null,null,null,null,null,null,null,null,null,null,null,null,null,null,null,null,null,null,null,null,null,"",null,null,null,null,null,null,null,null,""]
["",null,null,null,null,null,null,null,null,null,null,null,null,null,null,null,null,null,null,null,null,null,null,null,null,null,null,null,null,null,null,null,null,null,null,null,null,null,null,null,"",null,null,null,null,null,null,null,null,""]
["",null,null,null,null,null,null,null,null,null,null,null,null,null,null,null,null,null,null,null,null,null,null,null,null,null,null,null,null,null,null,null,null,null,null,null,null,null,null,null,"",null,null,null,null,null,null,null,null,""]
["",null,null,null,null,null,null,null,null,null,null,null,null,null,null,null,null,null,null,null,null,null,null,null,null,null,null,null,null,null,null,null,null,null,null,null,null,null,null,null,"",null,null,null,null,null,null,null,null,""]
["",null,null,null,null,null,null,null,null,null,null,null,null,null,null,null,null,null,null,null,null,null,null,null,null,null,null,null,null,null,null,null,null,null,null,null,null,null,null,null,"",null,null,null,null,null,null,null,null,""]
["",null,null,null,null,null,null,null,null,null,null,null,null,null,null,null,null,null,null,null,null,null,null,null,null,null,null,null,null,null,null,null,null,null,null,null,null,null,null,null,"",null,null,null,null,null,null,null,null,""]
["",null,null,null,null,null,null,null,null,null,null,null,null,null,null,null,null,null,null,null,null,null,null,null,null,null,null,null,null,null,null,null,null,null,null,null,null,null,null,null,"",null,null,null,null,null,null,null,null,""]
["",null,null,null,null,null,null,null,null,null,null,null,null,null,null,null,null,null,null,null,null,null,null,null,null,null,null,null,null,null,null,null,null,null,null,null,null,null,null,null,"",null,null,null,null,null,null,null,null,""]
["",null,null,null,null,null,null,null,null,null,null,null,null,null,null,null,null,null,null,null,null,null,null,null,null,null,null,null,null,null,null,null,null,null,null,null,null,null,null,null,"",null,null,null,null,null,null,null,null,""]
["",null,null,null,null,null,null,null,null,null,null,null,null,null,null,null,null,null,null,null,null,null,null,null,null,null,null,null,null,null,null,null,null,null,null,null,null,null,null,null,"",null,null,null,null,null,null,null,null,""]
["",null,null,null,null,null,null,null,null,null,null,null,null,null,null,null,null,null,null,null,null,null,null,null,null,null,null,null,null,null,null,null,null,null,null,null,null,null,null,null,"",null,null,null,null,null,null,null,null,""]
["",null,null,null,null,null,null,null,null,null,null,null,null,null,null,null,null,null,null,null,null,null,null,null,null,null,null,null,null,null,null,null,null,null,null,null,null,null,null,null,"",null,null,null,null,null,null,null,null,""]
["",null,null,null,null,null,null,null,null,null,null,null,null,null,null,null,null,null,null,null,null,null,null,null,null,null,null,null,null,null,null,null,null,null,null,null,null,null,null,null,"",null,null,null,null,null,null,null,null,""]
["",null,null,null,null,null,null,null,null,null,null,null,null,null,null,null,null,null,null,null,null,null,null,null,null,null,null,null,null,null,null,null,null,null,null,null,null,null,null,null,"",null,null,null,null,null,null,null,null,""]
["",null,null,null,null,null,null,null,null,null,null,null,null,null,null,null,null,null,null,null,null,null,null,null,null,null,null,null,null,null,null,null,null,null,null,null,null,null,null,null,"",null,null,null,null,null,null,null,null,""]
["",null,null,null,null,null,null,null,null,null,null,null,null,null,null,null,null,null,null,null,null,null,null,null,null,null,null,null,null,null,null,null,null,null,null,null,null,null,null,null,"",null,null,null,null,null,null,null,null,""]
["",null,null,null,null,null,null,null,null,null,null,null,null,null,null,null,null,null,null,null,null,null,null,null,null,null,null,null,null,null,null,null,null,null,null,null,null,null,null,null,"",null,null,null,null,null,null,null,null,{"$f":"IF(A134<>\"\",_xlfn.CONCAT(\"IMÓVEL \",A134),\"\")","v":""}]
[{"$f":"IF(C135<>\"\",A134+1,\"\")","v":""},null,null,null,null,null,null,null,null,null,null,null,null,null,null,null,null,null,null,null,null,null,null,null,null,null,null,null,null,null,null,null,null,null,null,null,null,null,null,null,"",null,null,null,null,null,null,null,null,""]
["",null,null,null,null,null,null,null,null,null,null,null,null,null,null,null,null,null,null,null,null,null,null,null,null,null,null,null,null,null,null,null,null,null,null,null,null,null,null,null,"",null,null,null,null,null,null,null,null,""]
["",null,null,null,null,null,null,null,null,null,null,null,null,null,null,null,null,null,null,null,null,null,null,null,null,null,null,null,null,null,null,null,null,null,null,null,null,null,null,null,"",null,null,null,null,null,null,null,null,""]
["",null,null,null,null,null,null,null,null,null,null,null,null,null,null,null,null,null,null,null,null,null,null,null,null,null,null,null,null,null,null,null,null,null,null,null,null,null,null,null,"",null,null,null,null,null,null,null,null,""]
["",null,null,null,null,null,null,null,null,null,null,null,null,null,null,null,null,null,null,null,null,null,null,null,null,null,null,null,null,null,null,null,null,null,null,null,null,null,null,null,"",null,null,null,null,null,null,null,null,""]
["",null,null,null,null,null,null,null,null,null,null,null,null,null,null,null,null,null,null,null,null,null,null,null,null,null,null,null,null,null,null,null,null,null,null,null,null,null,null,null,"",null,null,null,null,null,null,null,null,""]
["",null,null,null,null,null,null,null,null,null,null,null,null,null,null,null,null,null,null,null,null,null,null,null,null,null,null,null,null,null,null,null,null,null,null,null,null,null,null,null,"",null,null,null,null,null,null,null,null,""]
["",null,null,null,null,null,null,null,null,null,null,null,null,null,null,null,null,null,null,null,null,null,null,null,null,null,null,null,null,null,null,null,null,null,null,null,null,null,null,null,{"$f":"IF(OR(AH142=\"\",AK142=\"\"),\"\",AK142*AH142)","v":""},null,null,null,null,null,null,null,null,""]
["",null,null,null,null,null,null,null,null,null,null,null,null,null,null,null,null,null,null,null,null,null,null,null,null,null,null,null,null,null,null,null,null,null,null,null,null,null,null,null,"",null,null,null,null,null,null,null,null,""]
["",null,null,null,null,null,null,null,null,null,null,null,null,null,null,null,null,null,null,null,null,null,null,null,null,null,null,null,null,null,null,null,null,null,null,null,null,null,null,null,"",null,null,null,null,null,null,null,null,""]
["",null,null,null,null,null,null,null,null,null,null,null,null,null,null,null,null,null,null,null,null,null,null,null,null,null,null,null,null,null,null,null,null,null,null,null,null,null,null,null,"",null,null,null,null,null,null,null,null,""]
["",null,null,null,null,null,null,null,null,null,null,null,null,null,null,null,null,null,null,null,null,null,null,null,null,null,null,null,null,null,null,null,null,null,null,null,null,null,null,null,"",null,null,null,null,null,null,null,null,""]
["",null,null,null,null,null,null,null,null,null,null,null,null,null,null,null,null,null,null,null,null,null,null,null,null,null,null,null,null,null,null,null,null,null,null,null,null,null,null,null,"",null,null,null,null,null,null,null,null,""]
["",null,null,null,null,null,null,null,null,null,null,null,null,null,null,null,null,null,null,null,null,null,null,null,null,null,null,null,null,null,null,null,null,null,null,null,null,null,null,null,"",null,null,null,null,null,null,null,null,""]
["",null,null,null,null,null,null,null,null,null,null,null,null,null,null,null,null,null,null,null,null,null,null,null,null,null,null,null,null,null,null,null,null,null,null,null,null,null,null,null,"",null,null,null,null,null,null,null,null,""]
["",null,null,null,null,null,null,null,null,null,null,null,null,null,null,null,null,null,null,null,null,null,null,null,null,null,null,null,null,null,null,null,null,null,null,null,null,null,null,null,"",null,null,null,null,null,null,null,null,""]
["",null,null,null,null,null,null,null,null,null,null,null,null,null,null,null,null,null,null,null,null,null,null,null,null,null,null,null,null,null,null,null,null,null,null,null,null,null,null,null,"",null,null,null,null,null,null,null,null,""]
["",null,null,null,null,null,null,null,null,null,null,null,null,null,null,null,null,null,null,null,null,null,null,null,null,null,null,null,null,null,null,null,null,null,null,null,null,null,null,null,"",null,null,null,null,null,null,null,null,""]
["",null,null,null,null,null,null,null,null,null,null,null,null,null,null,null,null,null,null,null,null,null,null,null,null,null,null,null,null,null,null,null,null,null,null,null,null,null,null,null,"",null,null,null,null,null,null,null,null,""]
["",null,null,null,null,null,null,null,null,null,null,null,null,null,null,null,null,null,null,null,null,null,null,null,null,null,null,null,null,null,null,null,null,null,null,null,null,null,null,null,"",null,null,null,null,null,null,null,null,""]
["",null,null,null,null,null,null,null,null,null,null,null,null,null,null,null,null,null,null,null,null,null,null,null,null,null,null,null,null,null,null,null,null,null,null,null,null,null,null,null,"",null,null,null,null,null,null,null,null,""]
["",null,null,null,null,null,null,null,null,null,null,null,null,null,null,null,null,null,null,null,null,null,null,null,null,null,null,null,null,null,null,null,null,null,null,null,null,null,null,null,"",null,null,null,null,null,null,null,null,""]
["",null,null,null,null,null,null,null,null,null,null,null,null,null,null,null,null,null,null,null,null,null,null,null,null,null,null,null,null,null,null,null,null,null,null,null,null,null,null,null,"",null,null,null,null,null,null,null,null,""]
["",null,null,null,null,null,null,null,null,null,null,null,null,null,null,null,null,null,null,null,null,null,null,null,null,null,null,null,null,null,null,null,null,null,null,null,null,null,null,null,"",null,null,null,null,null,null,null,null,""]
["",null,null,null,null,null,null,null,null,null,null,null,null,null,null,null,null,null,null,null,null,null,null,null,null,null,null,null,null,null,null,null,null,null,null,null,null,null,null,null,"",null,null,null,null,null,null,null,null,""]
["",null,null,null,null,null,null,null,null,null,null,null,null,null,null,null,null,null,null,null,null,null,null,null,null,null,null,null,null,null,null,null,null,null,null,null,null,null,null,null,"",null,null,null,null,null,null,null,null,""]
["",null,null,null,null,null,null,null,null,null,null,null,null,null,null,null,null,null,null,null,null,null,null,null,null,null,null,null,null,null,null,null,null,null,null,null,null,null,null,null,"",null,null,null,null,null,null,null,null,""]
["",null,null,null,null,null,null,null,null,null,null,null,null,null,null,null,null,null,null,null,null,null,null,null,null,null,null,null,null,null,null,null,null,null,null,null,null,null,null,null,"",null,null,null,null,null,null,null,null,""]
["",null,null,null,null,null,null,null,null,null,null,null,null,null,null,null,null,null,null,null,null,null,null,null,null,null,null,null,null,null,null,null,null,null,null,null,null,null,null,null,"",null,null,null,null,null,null,null,null,""]
["",null,null,null,null,null,null,null,null,null,null,null,null,null,null,null,null,null,null,null,null,null,null,null,null,null,null,null,null,null,null,null,null,null,null,null,null,null,null,null,"",null,null,null,null,null,null,null,null,""]
["",null,null,null,null,null,null,null,null,null,null,null,null,null,null,null,null,null,null,null,null,null,null,null,null,null,null,null,null,null,null,null,null,null,null,null,null,null,null,null,"",null,null,null,null,null,null,null,null,""]
["",null,null,null,null,null,null,null,null,null,null,null,null,null,null,null,null,null,null,null,null,null,null,null,null,null,null,null,null,null,null,null,null,null,null,null,null,null,null,null,"",null,null,null,null,null,null,null,null,""]
["",null,null,null,null,null,null,null,null,null,null,null,null,null,null,null,null,null,null,null,null,null,null,null,null,null,null,null,null,null,null,null,null,null,null,null,null,null,null,null,"",null,null,null,null,null,null,null,null,""]
["",null,null,null,null,null,null,null,null,null,null,null,null,null,null,null,null,null,null,null,null,null,null,null,null,null,null,null,null,null,null,null,null,null,null,null,null,null,null,null,"",null,null,null,null,null,null,null,null,""]
["TOTAL",null,null,null,null,null,null,null,null,null,null,null,null,null,null,null,null,null,null,null,null,null,null,null,null,null,null,null,null,null,null,null,null,null,null,null,null,null,null,null,{"$f":"SUM(AO69:AS168)","v":0}]
[]
["BENFEITORIAS"]
["IMÓVEL REF",null,null,null,null,"DESCRIÇÃO",null,null,null,null,null,null,null,null,null,null,null,null,null,null,null,null,null,null,null,null,null,null,null,null,"QTD",null,null,"PART.\n%",null,null,"VALOR BEM\n (R$)",null,null,null,"VALOR %\n(R$)"]
[null,null,null,null,null,null,null,null,null,null,null,null,null,null,null,null,null,null,null,null,null,null,null,null,null,null,null,null,null,null,null,null,null,null,null,null,null,null,null,null,{"$f":"IF(OR(AE173=\"\",AH173=\"\",AK173=\"\"),\"\",AK173*AH173*AE173)","v":""},null,null,null,null,null,{"$f":"SUM(AV173:AV222)","v":1},1]
[null,null,null,null,null,null,null,null,null,null,null,null,null,null,null,null,null,null,null,null,null,null,null,null,null,null,null,null,null,null,null,null,null,null,null,null,null,null,null,null,{"$f":"IF(OR(AE174=\"\",AH174=\"\",AK174=\"\"),\"\",AK174*AH174*AE174)","v":""}]
[null,null,null,null,null,null,null,null,null,null,null,null,null,null,null,null,null,null,null,null,null,null,null,null,null,null,null,null,null,null,null,null,null,null,null,null,null,null,null,null,""]
[null,null,null,null,null,null,null,null,null,null,null,null,null,null,null,null,null,null,null,null,null,null,null,null,null,null,null,null,null,null,null,null,null,null,null,null,null,null,null,null,""]
[null,null,null,null,null,null,null,null,null,null,null,null,null,null,null,null,null,null,null,null,null,null,null,null,null,null,null,null,null,null,null,null,null,null,null,null,null,null,null,null,""]
[null,null,null,null,null,null,null,null,null,null,null,null,null,null,null,null,null,null,null,null,null,null,null,null,null,null,null,null,null,null,null,null,null,null,null,null,null,null,null,null,""]
[null,null,null,null,null,null,null,null,null,null,null,null,null,null,null,null,null,null,null,null,null,null,null,null,null,null,null,null,null,null,null,null,null,null,null,null,null,null,null,null,""]
[null,null,null,null,null,null,null,null,null,null,null,null,null,null,null,null,null,null,null,null,null,null,null,null,null,null,null,null,null,null,null,null,null,null,null,null,null,null,null,null,""]
[null,null,null,null,null,null,null,null,null,null,null,null,null,null,null,null,null,null,null,null,null,null,null,null,null,null,null,null,null,null,null,null,null,null,null,null,null,null,null,null,""]
[null,null,null,null,null,null,null,null,null,null,null,null,null,null,null,null,null,null,null,null,null,null,null,null,null,null,null,null,null,null,null,null,null,null,null,null,null,null,null,null,""]
[null,null,null,null,null,null,null,null,null,null,null,null,null,null,null,null,null,null,null,null,null,null,null,null,null,null,null,null,null,null,null,null,null,null,null,null,null,null,null,null,""]
[null,null,null,null,null,null,null,null,null,null,null,null,null,null,null,null,null,null,null,null,null,null,null,null,null,null,null,null,null,null,null,null,null,null,null,null,null,null,null,null,""]
[null,null,null,null,null,null,null,null,null,null,null,null,null,null,null,null,null,null,null,null,null,null,null,null,null,null,null,null,null,null,null,null,null,null,null,null,null,null,null,null,""]
[null,null,null,null,null,null,null,null,null,null,null,null,null,null,null,null,null,null,null,null,null,null,null,null,null,null,null,null,null,null,null,null,null,null,null,null,null,null,null,null,""]
[null,null,null,null,null,null,null,null,null,null,null,null,null,null,null,null,null,null,null,null,null,null,null,null,null,null,null,null,null,null,null,null,null,null,null,null,null,null,null,null,{"$f":"IF(OR(AE187=\"\",AH187=\"\",AK187=\"\"),\"\",AK187*AH187*AE187)","v":""}]
[null,null,null,null,null,null,null,null,null,null,null,null,null,null,null,null,null,null,null,null,null,null,null,null,null,null,null,null,null,null,null,null,null,null,null,null,null,null,null,null,""]
[null,null,null,null,null,null,null,null,null,null,null,null,null,null,null,null,null,null,null,null,null,null,null,null,null,null,null,null,null,null,null,null,null,null,null,null,null,null,null,null,""]
[null,null,null,null,null,null,null,null,null,null,null,null,null,null,null,null,null,null,null,null,null,null,null,null,null,null,null,null,null,null,null,null,null,null,null,null,null,null,null,null,""]
[null,null,null,null,null,null,null,null,null,null,null,null,null,null,null,null,null,null,null,null,null,null,null,null,null,null,null,null,null,null,null,null,null,null,null,null,null,null,null,null,""]
[null,null,null,null,null,null,null,null,null,null,null,null,null,null,null,null,null,null,null,null,null,null,null,null,null,null,null,null,null,null,null,null,null,null,null,null,null,null,null,null,""]
[null,null,null,null,null,null,null,null,null,null,null,null,null,null,null,null,null,null,null,null,null,null,null,null,null,null,null,null,null,null,null,null,null,null,null,null,null,null,null,null,""]
[null,null,null,null,null,null,null,null,null,null,null,null,null,null,null,null,null,null,null,null,null,null,null,null,null,null,null,null,null,null,null,null,null,null,null,null,null,null,null,null,""]
[null,null,null,null,null,null,null,null,null,null,null,null,null,null,null,null,null,null,null,null,null,null,null,null,null,null,null,null,null,null,null,null,null,null,null,null,null,null,null,null,""]
[null,null,null,null,null,null,null,null,null,null,null,null,null,null,null,null,null,null,null,null,null,null,null,null,null,null,null,null,null,null,null,null,null,null,null,null,null,null,null,null,""]
[null,null,null,null,null,null,null,null,null,null,null,null,null,null,null,null,null,null,null,null,null,null,null,null,null,null,null,null,null,null,null,null,null,null,null,null,null,null,null,null,""]
[null,null,null,null,null,null,null,null,null,null,null,null,null,null,null,null,null,null,null,null,null,null,null,null,null,null,null,null,null,null,null,null,null,null,null,null,null,null,null,null,""]
[null,null,null,null,null,null,null,null,null,null,null,null,null,null,null,null,null,null,null,null,null,null,null,null,null,null,null,null,null,null,null,null,null,null,null,null,null,null,null,null,""]
[null,null,null,null,null,null,null,null,null,null,null,null,null,null,null,null,null,null,null,null,null,null,null,null,null,null,null,null,null,null,null,null,null,null,null,null,null,null,null,null,""]
[null,null,null,null,null,null,null,null,null,null,null,null,null,null,null,null,null,null,null,null,null,null,null,null,null,null,null,null,null,null,null,null,null,null,null,null,null,null,null,null,""]
[null,null,null,null,null,null,null,null,null,null,null,null,null,null,null,null,null,null,null,null,null,null,null,null,null,null,null,null,null,null,null,null,null,null,null,null,null,null,null,null,{"$f":"IF(OR(AE202=\"\",AH202=\"\",AK202=\"\"),\"\",AK202*AH202*AE202)","v":""}]
[null,null,null,null,null,null,null,null,null,null,null,null,null,null,null,null,null,null,null,null,null,null,null,null,null,null,null,null,null,null,null,null,null,null,null,null,null,null,null,null,""]
[null,null,null,null,null,null,null,null,null,null,null,null,null,null,null,null,null,null,null,null,null,null,null,null,null,null,null,null,null,null,null,null,null,null,null,null,null,null,null,null,""]
[null,null,null,null,null,null,null,null,null,null,null,null,null,null,null,null,null,null,null,null,null,null,null,null,null,null,null,null,null,null,null,null,null,null,null,null,null,null,null,null,""]
[null,null,null,null,null,null,null,null,null,null,null,null,null,null,null,null,null,null,null,null,null,null,null,null,null,null,null,null,null,null,null,null,null,null,null,null,null,null,null,null,""]
[null,null,null,null,null,null,null,null,null,null,null,null,null,null,null,null,null,null,null,null,null,null,null,null,null,null,null,null,null,null,null,null,null,null,null,null,null,null,null,null,""]
[null,null,null,null,null,null,null,null,null,null,null,null,null,null,null,null,null,null,null,null,null,null,null,null,null,null,null,null,null,null,null,null,null,null,null,null,null,null,null,null,""]
[null,null,null,null,null,null,null,null,null,null,null,null,null,null,null,null,null,null,null,null,null,null,null,null,null,null,null,null,null,null,null,null,null,null,null,null,null,null,null,null,""]
[null,null,null,null,null,null,null,null,null,null,null,null,null,null,null,null,null,null,null,null,null,null,null,null,null,null,null,null,null,null,null,null,null,null,null,null,null,null,null,null,""]
[null,null,null,null,null,null,null,null,null,null,null,null,null,null,null,null,null,null,null,null,null,null,null,null,null,null,null,null,null,null,null,null,null,null,null,null,null,null,null,null,""]
[null,null,null,null,null,null,null,null,null,null,null,null,null,null,null,null,null,null,null,null,null,null,null,null,null,null,null,null,null,null,null,null,null,null,null,null,null,null,null,null,""]
[null,null,null,null,null,null,null,null,null,null,null,null,null,null,null,null,null,null,null,null,null,null,null,null,null,null,null,null,null,null,null,null,null,null,null,null,null,null,null,null,""]
[null,null,null,null,null,null,null,null,null,null,null,null,null,null,null,null,null,null,null,null,null,null,null,null,null,null,null,null,null,null,null,null,null,null,null,null,null,null,null,null,""]
[null,null,null,null,null,null,null,null,null,null,null,null,null,null,null,null,null,null,null,null,null,null,null,null,null,null,null,null,null,null,null,null,null,null,null,null,null,null,null,null,""]
[null,null,null,null,null,null,null,null,null,null,null,null,null,null,null,null,null,null,null,null,null,null,null,null,null,null,null,null,null,null,null,null,null,null,null,null,null,null,null,null,""]
[null,null,null,null,null,null,null,null,null,null,null,null,null,null,null,null,null,null,null,null,null,null,null,null,null,null,null,null,null,null,null,null,null,null,null,null,null,null,null,null,""]
[null,null,null,null,null,null,null,null,null,null,null,null,null,null,null,null,null,null,null,null,null,null,null,null,null,null,null,null,null,null,null,null,null,null,null,null,null,null,null,null,""]
[null,null,null,null,null,null,null,null,null,null,null,null,null,null,null,null,null,null,null,null,null,null,null,null,null,null,null,null,null,null,null,null,null,null,null,null,null,null,null,null,""]
[null,null,null,null,null,null,null,null,null,null,null,null,null,null,null,null,null,null,null,null,null,null,null,null,null,null,null,null,null,null,null,null,null,null,null,null,null,null,null,null,""]
[null,null,null,null,null,null,null,null,null,null,null,null,null,null,null,null,null,null,null,null,null,null,null,null,null,null,null,null,null,null,null,null,null,null,null,null,null,null,null,null,""]
[null,null,null,null,null,null,null,null,null,null,null,null,null,null,null,null,null,null,null,null,null,null,null,null,null,null,null,null,null,null,null,null,null,null,null,null,null,null,null,null,""]
["TOTAL",null,null,null,null,null,null,null,null,null,null,null,null,null,null,null,null,null,null,null,null,null,null,null,null,null,null,null,null,null,null,null,null,null,null,null,null,null,null,null,{"$f":"SUM(AO173:AS222)","v":0}]
[]
["BENS MÓVEIS"]
[]
[" VEÍCULOS, MÁQUINAS E EQUIPAMENTOS"]
["TIPO",null,null,null,null,null,"DESCRIÇÃO",null,null,null,null,null,null,null,null,null,null,null,null,null,null,null,null,null,null,null,null,null,null,"QTD",null,null,"PART.\n%",null,null,"VALOR BEM\n (R$)",null,null,null,null,"VALOR %\n(R$)"]
[null,null,null,null,null,null,null,null,null,null,null,null,null,null,null,null,null,null,null,null,null,null,null,null,null,null,null,null,null,null,null,null,null,null,null,null,null,null,null,null,{"$f":"IF(AD229=\"\",\"\",AD229*AG229*AJ229)","v":""},null,null,null,null,null,{"$f":"SUM(AV229:AV428)","v":1},1]
[null,null,null,null,null,null,null,null,null,null,null,null,null,null,null,null,null,null,null,null,null,null,null,null,null,null,null,null,null,null,null,null,null,null,null,null,null,null,null,null,{"$f":"IF(AD230=\"\",\"\",AD230*AG230*AJ230)","v":""}]
[null,null,null,null,null,null,null,null,null,null,null,null,null,null,null,null,null,null,null,null,null,null,null,null,null,null,null,null,null,null,null,null,null,null,null,null,null,null,null,null,""]
[null,null,null,null,null,null,null,null,null,null,null,null,null,null,null,null,null,null,null,null,null,null,null,null,null,null,null,null,null,null,null,null,null,null,null,null,null,null,null,null,""]
[null,null,null,null,null,null,null,null,null,null,null,null,null,null,null,null,null,null,null,null,null,null,null,null,null,null,null,null,null,null,null,null,null,null,null,null,null,null,null,null,""]
[null,null,null,null,null,null,null,null,null,null,null,null,null,null,null,null,null,null,null,null,null,null,null,null,null,null,null,null,null,null,null,null,null,null,null,null,null,null,null,null,""]
[null,null,null,null,null,null,null,null,null,null,null,null,null,null,null,null,null,null,null,null,null,null,null,null,null,null,null,null,null,null,null,null,null,null,null,null,null,null,null,null,""]
[null,null,null,null,null,null,null,null,null,null,null,null,null,null,null,null,null,null,null,null,null,null,null,null,null,null,null,null,null,null,null,null,null,null,null,null,null,null,null,null,""]
[null,null,null,null,null,null,null,null,null,null,null,null,null,null,null,null,null,null,null,null,null,null,null,null,null,null,null,null,null,null,null,null,null,null,null,null,null,null,null,null,""]
[null,null,null,null,null,null,null,null,null,null,null,null,null,null,null,null,null,null,null,null,null,null,null,null,null,null,null,null,null,null,null,null,null,null,null,null,null,null,null,null,""]
[null,null,null,null,null,null,null,null,null,null,null,null,null,null,null,null,null,null,null,null,null,null,null,null,null,null,null,null,null,null,null,null,null,null,null,null,null,null,null,null,""]
[null,null,null,null,null,null,null,null,null,null,null,null,null,null,null,null,null,null,null,null,null,null,null,null,null,null,null,null,null,null,null,null,null,null,null,null,null,null,null,null,""]
[null,null,null,null,null,null,null,null,null,null,null,null,null,null,null,null,null,null,null,null,null,null,null,null,null,null,null,null,null,null,null,null,null,null,null,null,null,null,null,null,""]
[null,null,null,null,null,null,null,null,null,null,null,null,null,null,null,null,null,null,null,null,null,null,null,null,null,null,null,null,null,null,null,null,null,null,null,null,null,null,null,null,""]
[null,null,null,null,null,null,null,null,null,null,null,null,null,null,null,null,null,null,null,null,null,null,null,null,null,null,null,null,null,null,null,null,null,null,null,null,null,null,null,null,""]
[null,null,null,null,null,null,null,null,null,null,null,null,null,null,null,null,null,null,null,null,null,null,null,null,null,null,null,null,null,null,null,null,null,null,null,null,null,null,null,null,""]
[null,null,null,null,null,null,null,null,null,null,null,null,null,null,null,null,null,null,null,null,null,null,null,null,null,null,null,null,null,null,null,null,null,null,null,null,null,null,null,null,""]
[null,null,null,null,null,null,null,null,null,null,null,null,null,null,null,null,null,null,null,null,null,null,null,null,null,null,null,null,null,null,null,null,null,null,null,null,null,null,null,null,""]
[null,null,null,null,null,null,null,null,null,null,null,null,null,null,null,null,null,null,null,null,null,null,null,null,null,null,null,null,null,null,null,null,null,null,null,null,null,null,null,null,""]
[null,null,null,null,null,null,null,null,null,null,null,null,null,null,null,null,null,null,null,null,null,null,null,null,null,null,null,null,null,null,null,null,null,null,null,null,null,null,null,null,""]
[null,null,null,null,null,null,null,null,null,null,null,null,null,null,null,null,null,null,null,null,null,null,null,null,null,null,null,null,null,null,null,null,null,null,null,null,null,null,null,null,""]
[null,null,null,null,null,null,null,null,null,null,null,null,null,null,null,null,null,null,null,null,null,null,null,null,null,null,null,null,null,null,null,null,null,null,null,null,null,null,null,null,""]
[null,null,null,null,null,null,null,null,null,null,null,null,null,null,null,null,null,null,null,null,null,null,null,null,null,null,null,null,null,null,null,null,null,null,null,null,null,null,null,null,""]
[null,null,null,null,null,null,null,null,null,null,null,null,null,null,null,null,null,null,null,null,null,null,null,null,null,null,null,null,null,null,null,null,null,null,null,null,null,null,null,null,""]
[null,null,null,null,null,null,null,null,null,null,null,null,null,null,null,null,null,null,null,null,null,null,null,null,null,null,null,null,null,null,null,null,null,null,null,null,null,null,null,null,""]
[null,null,null,null,null,null,null,null,null,null,null,null,null,null,null,null,null,null,null,null,null,null,null,null,null,null,null,null,null,null,null,null,null,null,null,null,null,null,null,null,""]
[null,null,null,null,null,null,null,null,null,null,null,null,null,null,null,null,null,null,null,null,null,null,null,null,null,null,null,null,null,null,null,null,null,null,null,null,null,null,null,null,""]
[null,null,null,null,null,null,null,null,null,null,null,null,null,null,null,null,null,null,null,null,null,null,null,null,null,null,null,null,null,null,null,null,null,null,null,null,null,null,null,null,""]
[null,null,null,null,null,null,null,null,null,null,null,null,null,null,null,null,null,null,null,null,null,null,null,null,null,null,null,null,null,null,null,null,null,null,null,null,null,null,null,null,""]
[null,null,null,null,null,null,null,null,null,null,null,null,null,null,null,null,null,null,null,null,null,null,null,null,null,null,null,null,null,null,null,null,null,null,null,null,null,null,null,null,""]
[null,null,null,null,null,null,null,null,null,null,null,null,null,null,null,null,null,null,null,null,null,null,null,null,null,null,null,null,null,null,null,null,null,null,null,null,null,null,null,null,""]
[null,null,null,null,null,null,null,null,null,null,null,null,null,null,null,null,null,null,null,null,null,null,null,null,null,null,null,null,null,null,null,null,null,null,null,null,null,null,null,null,""]
[null,null,null,null,null,null,null,null,null,null,null,null,null,null,null,null,null,null,null,null,null,null,null,null,null,null,null,null,null,null,null,null,null,null,null,null,null,null,null,null,""]
[null,null,null,null,null,null,null,null,null,null,null,null,null,null,null,null,null,null,null,null,null,null,null,null,null,null,null,null,null,null,null,null,null,null,null,null,null,null,null,null,""]
[null,null,null,null,null,null,null,null,null,null,null,null,null,null,null,null,null,null,null,null,null,null,null,null,null,null,null,null,null,null,null,null,null,null,null,null,null,null,null,null,""]
[null,null,null,null,null,null,null,null,null,null,null,null,null,null,null,null,null,null,null,null,null,null,null,null,null,null,null,null,null,null,null,null,null,null,null,null,null,null,null,null,""]
[null,null,null,null,null,null,null,null,null,null,null,null,null,null,null,null,null,null,null,null,null,null,null,null,null,null,null,null,null,null,null,null,null,null,null,null,null,null,null,null,""]
[null,null,null,null,null,null,null,null,null,null,null,null,null,null,null,null,null,null,null,null,null,null,null,null,null,null,null,null,null,null,null,null,null,null,null,null,null,null,null,null,""]
[null,null,null,null,null,null,null,null,null,null,null,null,null,null,null,null,null,null,null,null,null,null,null,null,null,null,null,null,null,null,null,null,null,null,null,null,null,null,null,null,""]
[null,null,null,null,null,null,null,null,null,null,null,null,null,null,null,null,null,null,null,null,null,null,null,null,null,null,null,null,null,null,null,null,null,null,null,null,null,null,null,null,""]
[null,null,null,null,null,null,null,null,null,null,null,null,null,null,null,null,null,null,null,null,null,null,null,null,null,null,null,null,null,null,null,null,null,null,null,null,null,null,null,null,""]
[null,null,null,null,null,null,null,null,null,null,null,null,null,null,null,null,null,null,null,null,null,null,null,null,null,null,null,null,null,null,null,null,null,null,null,null,null,null,null,null,""]
[null,null,null,null,null,null,null,null,null,null,null,null,null,null,null,null,null,null,null,null,null,null,null,null,null,null,null,null,null,null,null,null,null,null,null,null,null,null,null,null,""]
[null,null,null,null,null,null,null,null,null,null,null,null,null,null,null,null,null,null,null,null,null,null,null,null,null,null,null,null,null,null,null,null,null,null,null,null,null,null,null,null,""]
[null,null,null,null,null,null,null,null,null,null,null,null,null,null,null,null,null,null,null,null,null,null,null,null,null,null,null,null,null,null,null,null,null,null,null,null,null,null,null,null,""]
[null,null,null,null,null,null,null,null,null,null,null,null,null,null,null,null,null,null,null,null,null,null,null,null,null,null,null,null,null,null,null,null,null,null,null,null,null,null,null,null,""]
[null,null,null,null,null,null,null,null,null,null,null,null,null,null,null,null,null,null,null,null,null,null,null,null,null,null,null,null,null,null,null,null,null,null,null,null,null,null,null,null,""]
[null,null,null,null,null,null,null,null,null,null,null,null,null,null,null,null,null,null,null,null,null,null,null,null,null,null,null,null,null,null,null,null,null,null,null,null,null,null,null,null,""]
[null,null,null,null,null,null,null,null,null,null,null,null,null,null,null,null,null,null,null,null,null,null,null,null,null,null,null,null,null,null,null,null,null,null,null,null,null,null,null,null,""]
[null,null,null,null,null,null,null,null,null,null,null,null,null,null,null,null,null,null,null,null,null,null,null,null,null,null,null,null,null,null,null,null,null,null,null,null,null,null,null,null,""]
[null,null,null,null,null,null,null,null,null,null,null,null,null,null,null,null,null,null,null,null,null,null,null,null,null,null,null,null,null,null,null,null,null,null,null,null,null,null,null,null,""]
[null,null,null,null,null,null,null,null,null,null,null,null,null,null,null,null,null,null,null,null,null,null,null,null,null,null,null,null,null,null,null,null,null,null,null,null,null,null,null,null,""]
[null,null,null,null,null,null,null,null,null,null,null,null,null,null,null,null,null,null,null,null,null,null,null,null,null,null,null,null,null,null,null,null,null,null,null,null,null,null,null,null,""]
[null,null,null,null,null,null,null,null,null,null,null,null,null,null,null,null,null,null,null,null,null,null,null,null,null,null,null,null,null,null,null,null,null,null,null,null,null,null,null,null,""]
[null,null,null,null,null,null,null,null,null,null,null,null,null,null,null,null,null,null,null,null,null,null,null,null,null,null,null,null,null,null,null,null,null,null,null,null,null,null,null,null,""]
[null,null,null,null,null,null,null,null,null,null,null,null,null,null,null,null,null,null,null,null,null,null,null,null,null,null,null,null,null,null,null,null,null,null,null,null,null,null,null,null,""]
[null,null,null,null,null,null,null,null,null,null,null,null,null,null,null,null,null,null,null,null,null,null,null,null,null,null,null,null,null,null,null,null,null,null,null,null,null,null,null,null,""]
[null,null,null,null,null,null,null,null,null,null,null,null,null,null,null,null,null,null,null,null,null,null,null,null,null,null,null,null,null,null,null,null,null,null,null,null,null,null,null,null,""]
[null,null,null,null,null,null,null,null,null,null,null,null,null,null,null,null,null,null,null,null,null,null,null,null,null,null,null,null,null,null,null,null,null,null,null,null,null,null,null,null,""]
[null,null,null,null,null,null,null,null,null,null,null,null,null,null,null,null,null,null,null,null,null,null,null,null,null,null,null,null,null,null,null,null,null,null,null,null,null,null,null,null,""]
[null,null,null,null,null,null,null,null,null,null,null,null,null,null,null,null,null,null,null,null,null,null,null,null,null,null,null,null,null,null,null,null,null,null,null,null,null,null,null,null,""]
[null,null,null,null,null,null,null,null,null,null,null,null,null,null,null,null,null,null,null,null,null,null,null,null,null,null,null,null,null,null,null,null,null,null,null,null,null,null,null,null,""]
[null,null,null,null,null,null,null,null,null,null,null,null,null,null,null,null,null,null,null,null,null,null,null,null,null,null,null,null,null,null,null,null,null,null,null,null,null,null,null,null,""]
[null,null,null,null,null,null,null,null,null,null,null,null,null,null,null,null,null,null,null,null,null,null,null,null,null,null,null,null,null,null,null,null,null,null,null,null,null,null,null,null,""]
[null,null,null,null,null,null,null,null,null,null,null,null,null,null,null,null,null,null,null,null,null,null,null,null,null,null,null,null,null,null,null,null,null,null,null,null,null,null,null,null,""]
[null,null,null,null,null,null,null,null,null,null,null,null,null,null,null,null,null,null,null,null,null,null,null,null,null,null,null,null,null,null,null,null,null,null,null,null,null,null,null,null,""]
[null,null,null,null,null,null,null,null,null,null,null,null,null,null,null,null,null,null,null,null,null,null,null,null,null,null,null,null,null,null,null,null,null,null,null,null,null,null,null,null,""]
[null,null,null,null,null,null,null,null,null,null,null,null,null,null,null,null,null,null,null,null,null,null,null,null,null,null,null,null,null,null,null,null,null,null,null,null,null,null,null,null,""]
[null,null,null,null,null,null,null,null,null,null,null,null,null,null,null,null,null,null,null,null,null,null,null,null,null,null,null,null,null,null,null,null,null,null,null,null,null,null,null,null,""]
[null,null,null,null,null,null,null,null,null,null,null,null,null,null,null,null,null,null,null,null,null,null,null,null,null,null,null,null,null,null,null,null,null,null,null,null,null,null,null,null,""]
[null,null,null,null,null,null,null,null,null,null,null,null,null,null,null,null,null,null,null,null,null,null,null,null,null,null,null,null,null,null,null,null,null,null,null,null,null,null,null,null,""]
[null,null,null,null,null,null,null,null,null,null,null,null,null,null,null,null,null,null,null,null,null,null,null,null,null,null,null,null,null,null,null,null,null,null,null,null,null,null,null,null,""]
[null,null,null,null,null,null,null,null,null,null,null,null,null,null,null,null,null,null,null,null,null,null,null,null,null,null,null,null,null,null,null,null,null,null,null,null,null,null,null,null,""]
[null,null,null,null,null,null,null,null,null,null,null,null,null,null,null,null,null,null,null,null,null,null,null,null,null,null,null,null,null,null,null,null,null,null,null,null,null,null,null,null,""]
[null,null,null,null,null,null,null,null,null,null,null,null,null,null,null,null,null,null,null,null,null,null,null,null,null,null,null,null,null,null,null,null,null,null,null,null,null,null,null,null,""]
[null,null,null,null,null,null,null,null,null,null,null,null,null,null,null,null,null,null,null,null,null,null,null,null,null,null,null,null,null,null,null,null,null,null,null,null,null,null,null,null,""]
[null,null,null,null,null,null,null,null,null,null,null,null,null,null,null,null,null,null,null,null,null,null,null,null,null,null,null,null,null,null,null,null,null,null,null,null,null,null,null,null,""]
[null,null,null,null,null,null,null,null,null,null,null,null,null,null,null,null,null,null,null,null,null,null,null,null,null,null,null,null,null,null,null,null,null,null,null,null,null,null,null,null,""]
[null,null,null,null,null,null,null,null,null,null,null,null,null,null,null,null,null,null,null,null,null,null,null,null,null,null,null,null,null,null,null,null,null,null,null,null,null,null,null,null,""]
[null,null,null,null,null,null,null,null,null,null,null,null,null,null,null,null,null,null,null,null,null,null,null,null,null,null,null,null,null,null,null,null,null,null,null,null,null,null,null,null,""]
[null,null,null,null,null,null,null,null,null,null,null,null,null,null,null,null,null,null,null,null,null,null,null,null,null,null,null,null,null,null,null,null,null,null,null,null,null,null,null,null,""]
[null,null,null,null,null,null,null,null,null,null,null,null,null,null,null,null,null,null,null,null,null,null,null,null,null,null,null,null,null,null,null,null,null,null,null,null,null,null,null,null,""]
[null,null,null,null,null,null,null,null,null,null,null,null,null,null,null,null,null,null,null,null,null,null,null,null,null,null,null,null,null,null,null,null,null,null,null,null,null,null,null,null,""]
[null,null,null,null,null,null,null,null,null,null,null,null,null,null,null,null,null,null,null,null,null,null,null,null,null,null,null,null,null,null,null,null,null,null,null,null,null,null,null,null,""]
[null,null,null,null,null,null,null,null,null,null,null,null,null,null,null,null,null,null,null,null,null,null,null,null,null,null,null,null,null,null,null,null,null,null,null,null,null,null,null,null,""]
[null,null,null,null,null,null,null,null,null,null,null,null,null,null,null,null,null,null,null,null,null,null,null,null,null,null,null,null,null,null,null,null,null,null,null,null,null,null,null,null,""]
[null,null,null,null,null,null,null,null,null,null,null,null,null,null,null,null,null,null,null,null,null,null,null,null,null,null,null,null,null,null,null,null,null,null,null,null,null,null,null,null,""]
[null,null,null,null,null,null,null,null,null,null,null,null,null,null,null,null,null,null,null,null,null,null,null,null,null,null,null,null,null,null,null,null,null,null,null,null,null,null,null,null,""]
[null,null,null,null,null,null,null,null,null,null,null,null,null,null,null,null,null,null,null,null,null,null,null,null,null,null,null,null,null,null,null,null,null,null,null,null,null,null,null,null,""]
[null,null,null,null,null,null,null,null,null,null,null,null,null,null,null,null,null,null,null,null,null,null,null,null,null,null,null,null,null,null,null,null,null,null,null,null,null,null,null,null,""]
[null,null,null,null,null,null,null,null,null,null,null,null,null,null,null,null,null,null,null,null,null,null,null,null,null,null,null,null,null,null,null,null,null,null,null,null,null,null,null,null,""]
[null,null,null,null,null,null,null,null,null,null,null,null,null,null,null,null,null,null,null,null,null,null,null,null,null,null,null,null,null,null,null,null,null,null,null,null,null,null,null,null,""]
[null,null,null,null,null,null,null,null,null,null,null,null,null,null,null,null,null,null,null,null,null,null,null,null,null,null,null,null,null,null,null,null,null,null,null,null,null,null,null,null,""]
[null,null,null,null,null,null,null,null,null,null,null,null,null,null,null,null,null,null,null,null,null,null,null,null,null,null,null,null,null,null,null,null,null,null,null,null,null,null,null,null,""]
[null,null,null,null,null,null,null,null,null,null,null,null,null,null,null,null,null,null,null,null,null,null,null,null,null,null,null,null,null,null,null,null,null,null,null,null,null,null,null,null,""]
[null,null,null,null,null,null,null,null,null,null,null,null,null,null,null,null,null,null,null,null,null,null,null,null,null,null,null,null,null,null,null,null,null,null,null,null,null,null,null,null,""]
[null,null,null,null,null,null,null,null,null,null,null,null,null,null,null,null,null,null,null,null,null,null,null,null,null,null,null,null,null,null,null,null,null,null,null,null,null,null,null,null,""]
[null,null,null,null,null,null,null,null,null,null,null,null,null,null,null,null,null,null,null,null,null,null,null,null,null,null,null,null,null,null,null,null,null,null,null,null,null,null,null,null,""]
[null,null,null,null,null,null,null,null,null,null,null,null,null,null,null,null,null,null,null,null,null,null,null,null,null,null,null,null,null,null,null,null,null,null,null,null,null,null,null,null,""]
[null,null,null,null,null,null,null,null,null,null,null,null,null,null,null,null,null,null,null,null,null,null,null,null,null,null,null,null,null,null,null,null,null,null,null,null,null,null,null,null,""]
[null,null,null,null,null,null,null,null,null,null,null,null,null,null,null,null,null,null,null,null,null,null,null,null,null,null,null,null,null,null,null,null,null,null,null,null,null,null,null,null,{"$f":"IF(AD329=\"\",\"\",AD329*AG329*AJ329)","v":""}]
[null,null,null,null,null,null,null,null,null,null,null,null,null,null,null,null,null,null,null,null,null,null,null,null,null,null,null,null,null,null,null,null,null,null,null,null,null,null,null,null,{"$f":"IF(AD330=\"\",\"\",AD330*AG330*AJ330)","v":""}]
[null,null,null,null,null,null,null,null,null,null,null,null,null,null,null,null,null,null,null,null,null,null,null,null,null,null,null,null,null,null,null,null,null,null,null,null,null,null,null,null,""]
[null,null,null,null,null,null,null,null,null,null,null,null,null,null,null,null,null,null,null,null,null,null,null,null,null,null,null,null,null,null,null,null,null,null,null,null,null,null,null,null,""]
[null,null,null,null,null,null,null,null,null,null,null,null,null,null,null,null,null,null,null,null,null,null,null,null,null,null,null,null,null,null,null,null,null,null,null,null,null,null,null,null,""]
[null,null,null,null,null,null,null,null,null,null,null,null,null,null,null,null,null,null,null,null,null,null,null,null,null,null,null,null,null,null,null,null,null,null,null,null,null,null,null,null,""]
[null,null,null,null,null,null,null,null,null,null,null,null,null,null,null,null,null,null,null,null,null,null,null,null,null,null,null,null,null,null,null,null,null,null,null,null,null,null,null,null,""]
[null,null,null,null,null,null,null,null,null,null,null,null,null,null,null,null,null,null,null,null,null,null,null,null,null,null,null,null,null,null,null,null,null,null,null,null,null,null,null,null,""]
[null,null,null,null,null,null,null,null,null,null,null,null,null,null,null,null,null,null,null,null,null,null,null,null,null,null,null,null,null,null,null,null,null,null,null,null,null,null,null,null,{"$f":"IF(AD337=\"\",\"\",AD337*AG337*AJ337)","v":""}]
[null,null,null,null,null,null,null,null,null,null,null,null,null,null,null,null,null,null,null,null,null,null,null,null,null,null,null,null,null,null,null,null,null,null,null,null,null,null,null,null,""]
[null,null,null,null,null,null,null,null,null,null,null,null,null,null,null,null,null,null,null,null,null,null,null,null,null,null,null,null,null,null,null,null,null,null,null,null,null,null,null,null,""]
[null,null,null,null,null,null,null,null,null,null,null,null,null,null,null,null,null,null,null,null,null,null,null,null,null,null,null,null,null,null,null,null,null,null,null,null,null,null,null,null,""]
[null,null,null,null,null,null,null,null,null,null,null,null,null,null,null,null,null,null,null,null,null,null,null,null,null,null,null,null,null,null,null,null,null,null,null,null,null,null,null,null,""]
[null,null,null,null,null,null,null,null,null,null,null,null,null,null,null,null,null,null,null,null,null,null,null,null,null,null,null,null,null,null,null,null,null,null,null,null,null,null,null,null,""]
[null,null,null,null,null,null,null,null,null,null,null,null,null,null,null,null,null,null,null,null,null,null,null,null,null,null,null,null,null,null,null,null,null,null,null,null,null,null,null,null,""]
[null,null,null,null,null,null,null,null,null,null,null,null,null,null,null,null,null,null,null,null,null,null,null,null,null,null,null,null,null,null,null,null,null,null,null,null,null,null,null,null,""]
[null,null,null,null,null,null,null,null,null,null,null,null,null,null,null,null,null,null,null,null,null,null,null,null,null,null,null,null,null,null,null,null,null,null,null,null,null,null,null,null,""]
[null,null,null,null,null,null,null,null,null,null,null,null,null,null,null,null,null,null,null,null,null,null,null,null,null,null,null,null,null,null,null,null,null,null,null,null,null,null,null,null,""]
[null,null,null,null,null,null,null,null,null,null,null,null,null,null,null,null,null,null,null,null,null,null,null,null,null,null,null,null,null,null,null,null,null,null,null,null,null,null,null,null,""]
[null,null,null,null,null,null,null,null,null,null,null,null,null,null,null,null,null,null,null,null,null,null,null,null,null,null,null,null,null,null,null,null,null,null,null,null,null,null,null,null,""]
[null,null,null,null,null,null,null,null,null,null,null,null,null,null,null,null,null,null,null,null,null,null,null,null,null,null,null,null,null,null,null,null,null,null,null,null,null,null,null,null,""]
[null,null,null,null,null,null,null,null,null,null,null,null,null,null,null,null,null,null,null,null,null,null,null,null,null,null,null,null,null,null,null,null,null,null,null,null,null,null,null,null,""]
[null,null,null,null,null,null,null,null,null,null,null,null,null,null,null,null,null,null,null,null,null,null,null,null,null,null,null,null,null,null,null,null,null,null,null,null,null,null,null,null,""]
[null,null,null,null,null,null,null,null,null,null,null,null,null,null,null,null,null,null,null,null,null,null,null,null,null,null,null,null,null,null,null,null,null,null,null,null,null,null,null,null,""]
[null,null,null,null,null,null,null,null,null,null,null,null,null,null,null,null,null,null,null,null,null,null,null,null,null,null,null,null,null,null,null,null,null,null,null,null,null,null,null,null,""]
[null,null,null,null,null,null,null,null,null,null,null,null,null,null,null,null,null,null,null,null,null,null,null,null,null,null,null,null,null,null,null,null,null,null,null,null,null,null,null,null,""]
[null,null,null,null,null,null,null,null,null,null,null,null,null,null,null,null,null,null,null,null,null,null,null,null,null,null,null,null,null,null,null,null,null,null,null,null,null,null,null,null,""]
[null,null,null,null,null,null,null,null,null,null,null,null,null,null,null,null,null,null,null,null,null,null,null,null,null,null,null,null,null,null,null,null,null,null,null,null,null,null,null,null,""]
[null,null,null,null,null,null,null,null,null,null,null,null,null,null,null,null,null,null,null,null,null,null,null,null,null,null,null,null,null,null,null,null,null,null,null,null,null,null,null,null,""]
[null,null,null,null,null,null,null,null,null,null,null,null,null,null,null,null,null,null,null,null,null,null,null,null,null,null,null,null,null,null,null,null,null,null,null,null,null,null,null,null,""]
[null,null,null,null,null,null,null,null,null,null,null,null,null,null,null,null,null,null,null,null,null,null,null,null,null,null,null,null,null,null,null,null,null,null,null,null,null,null,null,null,""]
[null,null,null,null,null,null,null,null,null,null,null,null,null,null,null,null,null,null,null,null,null,null,null,null,null,null,null,null,null,null,null,null,null,null,null,null,null,null,null,null,""]
[null,null,null,null,null,null,null,null,null,null,null,null,null,null,null,null,null,null,null,null,null,null,null,null,null,null,null,null,null,null,null,null,null,null,null,null,null,null,null,null,""]
[null,null,null,null,null,null,null,null,null,null,null,null,null,null,null,null,null,null,null,null,null,null,null,null,null,null,null,null,null,null,null,null,null,null,null,null,null,null,null,null,""]
[null,null,null,null,null,null,null,null,null,null,null,null,null,null,null,null,null,null,null,null,null,null,null,null,null,null,null,null,null,null,null,null,null,null,null,null,null,null,null,null,""]
[null,null,null,null,null,null,null,null,null,null,null,null,null,null,null,null,null,null,null,null,null,null,null,null,null,null,null,null,null,null,null,null,null,null,null,null,null,null,null,null,""]
[null,null,null,null,null,null,null,null,null,null,null,null,null,null,null,null,null,null,null,null,null,null,null,null,null,null,null,null,null,null,null,null,null,null,null,null,null,null,null,null,""]
[null,null,null,null,null,null,null,null,null,null,null,null,null,null,null,null,null,null,null,null,null,null,null,null,null,null,null,null,null,null,null,null,null,null,null,null,null,null,null,null,""]
[null,null,null,null,null,null,null,null,null,null,null,null,null,null,null,null,null,null,null,null,null,null,null,null,null,null,null,null,null,null,null,null,null,null,null,null,null,null,null,null,""]
[null,null,null,null,null,null,null,null,null,null,null,null,null,null,null,null,null,null,null,null,null,null,null,null,null,null,null,null,null,null,null,null,null,null,null,null,null,null,null,null,""]
[null,null,null,null,null,null,null,null,null,null,null,null,null,null,null,null,null,null,null,null,null,null,null,null,null,null,null,null,null,null,null,null,null,null,null,null,null,null,null,null,""]
[null,null,null,null,null,null,null,null,null,null,null,null,null,null,null,null,null,null,null,null,null,null,null,null,null,null,null,null,null,null,null,null,null,null,null,null,null,null,null,null,""]
[null,null,null,null,null,null,null,null,null,null,null,null,null,null,null,null,null,null,null,null,null,null,null,null,null,null,null,null,null,null,null,null,null,null,null,null,null,null,null,null,""]
[null,null,null,null,null,null,null,null,null,null,null,null,null,null,null,null,null,null,null,null,null,null,null,null,null,null,null,null,null,null,null,null,null,null,null,null,null,null,null,null,""]
[null,null,null,null,null,null,null,null,null,null,null,null,null,null,null,null,null,null,null,null,null,null,null,null,null,null,null,null,null,null,null,null,null,null,null,null,null,null,null,null,""]
[null,null,null,null,null,null,null,null,null,null,null,null,null,null,null,null,null,null,null,null,null,null,null,null,null,null,null,null,null,null,null,null,null,null,null,null,null,null,null,null,""]
[null,null,null,null,null,null,null,null,null,null,null,null,null,null,null,null,null,null,null,null,null,null,null,null,null,null,null,null,null,null,null,null,null,null,null,null,null,null,null,null,""]
[null,null,null,null,null,null,null,null,null,null,null,null,null,null,null,null,null,null,null,null,null,null,null,null,null,null,null,null,null,null,null,null,null,null,null,null,null,null,null,null,""]
[null,null,null,null,null,null,null,null,null,null,null,null,null,null,null,null,null,null,null,null,null,null,null,null,null,null,null,null,null,null,null,null,null,null,null,null,null,null,null,null,""]
[null,null,null,null,null,null,null,null,null,null,null,null,null,null,null,null,null,null,null,null,null,null,null,null,null,null,null,null,null,null,null,null,null,null,null,null,null,null,null,null,{"$f":"IF(AD378=\"\",\"\",AD378*AG378*AJ378)","v":""}]
[null,null,null,null,null,null,null,null,null,null,null,null,null,null,null,null,null,null,null,null,null,null,null,null,null,null,null,null,null,null,null,null,null,null,null,null,null,null,null,null,""]
[null,null,null,null,null,null,null,null,null,null,null,null,null,null,null,null,null,null,null,null,null,null,null,null,null,null,null,null,null,null,null,null,null,null,null,null,null,null,null,null,""]
[null,null,null,null,null,null,null,null,null,null,null,null,null,null,null,null,null,null,null,null,null,null,null,null,null,null,null,null,null,null,null,null,null,null,null,null,null,null,null,null,""]
[null,null,null,null,null,null,null,null,null,null,null,null,null,null,null,null,null,null,null,null,null,null,null,null,null,null,null,null,null,null,null,null,null,null,null,null,null,null,null,null,""]
[null,null,null,null,null,null,null,null,null,null,null,null,null,null,null,null,null,null,null,null,null,null,null,null,null,null,null,null,null,null,null,null,null,null,null,null,null,null,null,null,""]
[null,null,null,null,null,null,null,null,null,null,null,null,null,null,null,null,null,null,null,null,null,null,null,null,null,null,null,null,null,null,null,null,null,null,null,null,null,null,null,null,""]
[null,null,null,null,null,null,null,null,null,null,null,null,null,null,null,null,null,null,null,null,null,null,null,null,null,null,null,null,null,null,null,null,null,null,null,null,null,null,null,null,""]
[null,null,null,null,null,null,null,null,null,null,null,null,null,null,null,null,null,null,null,null,null,null,null,null,null,null,null,null,null,null,null,null,null,null,null,null,null,null,null,null,""]
[null,null,null,null,null,null,null,null,null,null,null,null,null,null,null,null,null,null,null,null,null,null,null,null,null,null,null,null,null,null,null,null,null,null,null,null,null,null,null,null,""]
[null,null,null,null,null,null,null,null,null,null,null,null,null,null,null,null,null,null,null,null,null,null,null,null,null,null,null,null,null,null,null,null,null,null,null,null,null,null,null,null,""]
[null,null,null,null,null,null,null,null,null,null,null,null,null,null,null,null,null,null,null,null,null,null,null,null,null,null,null,null,null,null,null,null,null,null,null,null,null,null,null,null,""]
[null,null,null,null,null,null,null,null,null,null,null,null,null,null,null,null,null,null,null,null,null,null,null,null,null,null,null,null,null,null,null,null,null,null,null,null,null,null,null,null,""]
[null,null,null,null,null,null,null,null,null,null,null,null,null,null,null,null,null,null,null,null,null,null,null,null,null,null,null,null,null,null,null,null,null,null,null,null,null,null,null,null,""]
[null,null,null,null,null,null,null,null,null,null,null,null,null,null,null,null,null,null,null,null,null,null,null,null,null,null,null,null,null,null,null,null,null,null,null,null,null,null,null,null,""]
[null,null,null,null,null,null,null,null,null,null,null,null,null,null,null,null,null,null,null,null,null,null,null,null,null,null,null,null,null,null,null,null,null,null,null,null,null,null,null,null,""]
[null,null,null,null,null,null,null,null,null,null,null,null,null,null,null,null,null,null,null,null,null,null,null,null,null,null,null,null,null,null,null,null,null,null,null,null,null,null,null,null,""]
[null,null,null,null,null,null,null,null,null,null,null,null,null,null,null,null,null,null,null,null,null,null,null,null,null,null,null,null,null,null,null,null,null,null,null,null,null,null,null,null,""]
[null,null,null,null,null,null,null,null,null,null,null,null,null,null,null,null,null,null,null,null,null,null,null,null,null,null,null,null,null,null,null,null,null,null,null,null,null,null,null,null,""]
[null,null,null,null,null,null,null,null,null,null,null,null,null,null,null,null,null,null,null,null,null,null,null,null,null,null,null,null,null,null,null,null,null,null,null,null,null,null,null,null,""]
[null,null,null,null,null,null,null,null,null,null,null,null,null,null,null,null,null,null,null,null,null,null,null,null,null,null,null,null,null,null,null,null,null,null,null,null,null,null,null,null,""]
[null,null,null,null,null,null,null,null,null,null,null,null,null,null,null,null,null,null,null,null,null,null,null,null,null,null,null,null,null,null,null,null,null,null,null,null,null,null,null,null,""]
[null,null,null,null,null,null,null,null,null,null,null,null,null,null,null,null,null,null,null,null,null,null,null,null,null,null,null,null,null,null,null,null,null,null,null,null,null,null,null,null,""]
[null,null,null,null,null,null,null,null,null,null,null,null,null,null,null,null,null,null,null,null,null,null,null,null,null,null,null,null,null,null,null,null,null,null,null,null,null,null,null,null,""]
[null,null,null,null,null,null,null,null,null,null,null,null,null,null,null,null,null,null,null,null,null,null,null,null,null,null,null,null,null,null,null,null,null,null,null,null,null,null,null,null,""]
[null,null,null,null,null,null,null,null,null,null,null,null,null,null,null,null,null,null,null,null,null,null,null,null,null,null,null,null,null,null,null,null,null,null,null,null,null,null,null,null,""]
[null,null,null,null,null,null,null,null,null,null,null,null,null,null,null,null,null,null,null,null,null,null,null,null,null,null,null,null,null,null,null,null,null,null,null,null,null,null,null,null,""]
[null,null,null,null,null,null,null,null,null,null,null,null,null,null,null,null,null,null,null,null,null,null,null,null,null,null,null,null,null,null,null,null,null,null,null,null,null,null,null,null,""]
[null,null,null,null,null,null,null,null,null,null,null,null,null,null,null,null,null,null,null,null,null,null,null,null,null,null,null,null,null,null,null,null,null,null,null,null,null,null,null,null,""]
[null,null,null,null,null,null,null,null,null,null,null,null,null,null,null,null,null,null,null,null,null,null,null,null,null,null,null,null,null,null,null,null,null,null,null,null,null,null,null,null,""]
[null,null,null,null,null,null,null,null,null,null,null,null,null,null,null,null,null,null,null,null,null,null,null,null,null,null,null,null,null,null,null,null,null,null,null,null,null,null,null,null,""]
[null,null,null,null,null,null,null,null,null,null,null,null,null,null,null,null,null,null,null,null,null,null,null,null,null,null,null,null,null,null,null,null,null,null,null,null,null,null,null,null,""]
[null,null,null,null,null,null,null,null,null,null,null,null,null,null,null,null,null,null,null,null,null,null,null,null,null,null,null,null,null,null,null,null,null,null,null,null,null,null,null,null,""]
[null,null,null,null,null,null,null,null,null,null,null,null,null,null,null,null,null,null,null,null,null,null,null,null,null,null,null,null,null,null,null,null,null,null,null,null,null,null,null,null,""]
[null,null,null,null,null,null,null,null,null,null,null,null,null,null,null,null,null,null,null,null,null,null,null,null,null,null,null,null,null,null,null,null,null,null,null,null,null,null,null,null,""]
[null,null,null,null,null,null,null,null,null,null,null,null,null,null,null,null,null,null,null,null,null,null,null,null,null,null,null,null,null,null,null,null,null,null,null,null,null,null,null,null,""]
[null,null,null,null,null,null,null,null,null,null,null,null,null,null,null,null,null,null,null,null,null,null,null,null,null,null,null,null,null,null,null,null,null,null,null,null,null,null,null,null,""]
[null,null,null,null,null,null,null,null,null,null,null,null,null,null,null,null,null,null,null,null,null,null,null,null,null,null,null,null,null,null,null,null,null,null,null,null,null,null,null,null,""]
[null,null,null,null,null,null,null,null,null,null,null,null,null,null,null,null,null,null,null,null,null,null,null,null,null,null,null,null,null,null,null,null,null,null,null,null,null,null,null,null,""]
[null,null,null,null,null,null,null,null,null,null,null,null,null,null,null,null,null,null,null,null,null,null,null,null,null,null,null,null,null,null,null,null,null,null,null,null,null,null,null,null,{"$f":"IF(AD417=\"\",\"\",AD417*AG417*AJ417)","v":""}]
[null,null,null,null,null,null,null,null,null,null,null,null,null,null,null,null,null,null,null,null,null,null,null,null,null,null,null,null,null,null,null,null,null,null,null,null,null,null,null,null,""]
[null,null,null,null,null,null,null,null,null,null,null,null,null,null,null,null,null,null,null,null,null,null,null,null,null,null,null,null,null,null,null,null,null,null,null,null,null,null,null,null,""]
[null,null,null,null,null,null,null,null,null,null,null,null,null,null,null,null,null,null,null,null,null,null,null,null,null,null,null,null,null,null,null,null,null,null,null,null,null,null,null,null,""]
[null,null,null,null,null,null,null,null,null,null,null,null,null,null,null,null,null,null,null,null,null,null,null,null,null,null,null,null,null,null,null,null,null,null,null,null,null,null,null,null,""]
[null,null,null,null,null,null,null,null,null,null,null,null,null,null,null,null,null,null,null,null,null,null,null,null,null,null,null,null,null,null,null,null,null,null,null,null,null,null,null,null,""]
[null,null,null,null,null,null,null,null,null,null,null,null,null,null,null,null,null,null,null,null,null,null,null,null,null,null,null,null,null,null,null,null,null,null,null,null,null,null,null,null,""]
[null,null,null,null,null,null,null,null,null,null,null,null,null,null,null,null,null,null,null,null,null,null,null,null,null,null,null,null,null,null,null,null,null,null,null,null,null,null,null,null,""]
[null,null,null,null,null,null,null,null,null,null,null,null,null,null,null,null,null,null,null,null,null,null,null,null,null,null,null,null,null,null,null,null,null,null,null,null,null,null,null,null,""]
[null,null,null,null,null,null,null,null,null,null,null,null,null,null,null,null,null,null,null,null,null,null,null,null,null,null,null,null,null,null,null,null,null,null,null,null,null,null,null,null,""]
[null,null,null,null,null,null,null,null,null,null,null,null,null,null,null,null,null,null,null,null,null,null,null,null,null,null,null,null,null,null,null,null,null,null,null,null,null,null,null,null,""]
[null,null,null,null,null,null,null,null,null,null,null,null,null,null,null,null,null,null,null,null,null,null,null,null,null,null,null,null,null,null,null,null,null,null,null,null,null,null,null,null,""]
["TOTAL",null,null,null,null,null,null,null,null,null,null,null,null,null,null,null,null,null,null,null,null,null,null,null,null,null,null,null,null,null,null,null,null,null,null,null,null,null,null,null,{"$f":"SUM(AO229:AS428)","v":0}]
[]
["SEMOVENTES"]
[]
["BOVINOS"]
["TIPO DE ANIMAL",null,null,null,null,null,null,"IDADE MÉDIA\n(MESES)",null,null,null,null,null,"RAÇA:",null,null,null,null,null,"COR PREDOMINANTE",null,null,null,null,null,null,"QUANTIDADE \n(Nº CABEÇAS)",null,null,null,null,null,null,"VALOR  UN.\n (R$)",null,null,null,null,null,"VALOR \nTOTAL (R$)"]
[null,null,null,null,null,null,null,null,null,null,null,null,null,null,null,null,null,null,null,null,null,null,null,null,null,null,null,null,null,null,null,null,null,null,null,null,null,null,null,{"$f":"IF(OR(AH435=\"\",AA435=\"\"),\"\",AH435*AA435)","v":""},null,null,null,null,null,null,{"$f":"SUM(AV435:AV484)","v":1},1]
[null,null,null,null,null,null,null,null,null,null,null,null,null,null,null,null,null,null,null,null,null,null,null,null,null,null,null,null,null,null,null,null,null,null,null,null,null,null,null,{"$f":"IF(OR(AH436=\"\",AA436=\"\"),\"\",AH436*AA436)","v":""}]
[null,null,null,null,null,null,null,null,null,null,null,null,null,null,null,null,null,null,null,null,null,null,null,null,null,null,null,null,null,null,null,null,null,null,null,null,null,null,null,""]
[null,null,null,null,null,null,null,null,null,null,null,null,null,null,null,null,null,null,null,null,null,null,null,null,null,null,null,null,null,null,null,null,null,null,null,null,null,null,null,""]
[null,null,null,null,null,null,null,null,null,null,null,null,null,null,null,null,null,null,null,null,null,null,null,null,null,null,null,null,null,null,null,null,null,null,null,null,null,null,null,""]
[null,null,null,null,null,null,null,null,null,null,null,null,null,null,null,null,null,null,null,null,null,null,null,null,null,null,null,null,null,null,null,null,null,null,null,null,null,null,null,""]
[null,null,null,null,null,null,null,null,null,null,null,null,null,null,null,null,null,null,null,null,null,null,null,null,null,null,null,null,null,null,null,null,null,null,null,null,null,null,null,""]
[null,null,null,null,null,null,null,null,null,null,null,null,null,null,null,null,null,null,null,null,null,null,null,null,null,null,null,null,null,null,null,null,null,null,null,null,null,null,null,""]
[null,null,null,null,null,null,null,null,null,null,null,null,null,null,null,null,null,null,null,null,null,null,null,null,null,null,null,null,null,null,null,null,null,null,null,null,null,null,null,""]
[null,null,null,null,null,null,null,null,null,null,null,null,null,null,null,null,null,null,null,null,null,null,null,null,null,null,null,null,null,null,null,null,null,null,null,null,null,null,null,""]
[null,null,null,null,null,null,null,null,null,null,null,null,null,null,null,null,null,null,null,null,null,null,null,null,null,null,null,null,null,null,null,null,null,null,null,null,null,null,null,""]
[null,null,null,null,null,null,null,null,null,null,null,null,null,null,null,null,null,null,null,null,null,null,null,null,null,null,null,null,null,null,null,null,null,null,null,null,null,null,null,{"$f":"IF(OR(AH446=\"\",AA446=\"\"),\"\",AH446*AA446)","v":""}]
[null,null,null,null,null,null,null,null,null,null,null,null,null,null,null,null,null,null,null,null,null,null,null,null,null,null,null,null,null,null,null,null,null,null,null,null,null,null,null,""]
[null,null,null,null,null,null,null,null,null,null,null,null,null,null,null,null,null,null,null,null,null,null,null,null,null,null,null,null,null,null,null,null,null,null,null,null,null,null,null,""]
[null,null,null,null,null,null,null,null,null,null,null,null,null,null,null,null,null,null,null,null,null,null,null,null,null,null,null,null,null,null,null,null,null,null,null,null,null,null,null,""]
[null,null,null,null,null,null,null,null,null,null,null,null,null,null,null,null,null,null,null,null,null,null,null,null,null,null,null,null,null,null,null,null,null,null,null,null,null,null,null,""]
[null,null,null,null,null,null,null,null,null,null,null,null,null,null,null,null,null,null,null,null,null,null,null,null,null,null,null,null,null,null,null,null,null,null,null,null,null,null,null,""]
[null,null,null,null,null,null,null,null,null,null,null,null,null,null,null,null,null,null,null,null,null,null,null,null,null,null,null,null,null,null,null,null,null,null,null,null,null,null,null,""]
[null,null,null,null,null,null,null,null,null,null,null,null,null,null,null,null,null,null,null,null,null,null,null,null,null,null,null,null,null,null,null,null,null,null,null,null,null,null,null,""]
[null,null,null,null,null,null,null,null,null,null,null,null,null,null,null,null,null,null,null,null,null,null,null,null,null,null,null,null,null,null,null,null,null,null,null,null,null,null,null,""]
[null,null,null,null,null,null,null,null,null,null,null,null,null,null,null,null,null,null,null,null,null,null,null,null,null,null,null,null,null,null,null,null,null,null,null,null,null,null,null,""]
[null,null,null,null,null,null,null,null,null,null,null,null,null,null,null,null,null,null,null,null,null,null,null,null,null,null,null,null,null,null,null,null,null,null,null,null,null,null,null,""]
[null,null,null,null,null,null,null,null,null,null,null,null,null,null,null,null,null,null,null,null,null,null,null,null,null,null,null,null,null,null,null,null,null,null,null,null,null,null,null,{"$f":"IF(OR(AH457=\"\",AA457=\"\"),\"\",AH457*AA457)","v":""}]
[null,null,null,null,null,null,null,null,null,null,null,null,null,null,null,null,null,null,null,null,null,null,null,null,null,null,null,null,null,null,null,null,null,null,null,null,null,null,null,""]
[null,null,null,null,null,null,null,null,null,null,null,null,null,null,null,null,null,null,null,null,null,null,null,null,null,null,null,null,null,null,null,null,null,null,null,null,null,null,null,""]
[null,null,null,null,null,null,null,null,null,null,null,null,null,null,null,null,null,null,null,null,null,null,null,null,null,null,null,null,null,null,null,null,null,null,null,null,null,null,null,""]
[null,null,null,null,null,null,null,null,null,null,null,null,null,null,null,null,null,null,null,null,null,null,null,null,null,null,null,null,null,null,null,null,null,null,null,null,null,null,null,""]
[null,null,null,null,null,null,null,null,null,null,null,null,null,null,null,null,null,null,null,null,null,null,null,null,null,null,null,null,null,null,null,null,null,null,null,null,null,null,null,""]
[null,null,null,null,null,null,null,null,null,null,null,null,null,null,null,null,null,null,null,null,null,null,null,null,null,null,null,null,null,null,null,null,null,null,null,null,null,null,null,""]
[null,null,null,null,null,null,null,null,null,null,null,null,null,null,null,null,null,null,null,null,null,null,null,null,null,null,null,null,null,null,null,null,null,null,null,null,null,null,null,""]
[null,null,null,null,null,null,null,null,null,null,null,null,null,null,null,null,null,null,null,null,null,null,null,null,null,null,null,null,null,null,null,null,null,null,null,null,null,null,null,""]
[null,null,null,null,null,null,null,null,null,null,null,null,null,null,null,null,null,null,null,null,null,null,null,null,null,null,null,null,null,null,null,null,null,null,null,null,null,null,null,""]
[null,null,null,null,null,null,null,null,null,null,null,null,null,null,null,null,null,null,null,null,null,null,null,null,null,null,null,null,null,null,null,null,null,null,null,null,null,null,null,""]
[null,null,null,null,null,null,null,null,null,null,null,null,null,null,null,null,null,null,null,null,null,null,null,null,null,null,null,null,null,null,null,null,null,null,null,null,null,null,null,""]
[null,null,null,null,null,null,null,null,null,null,null,null,null,null,null,null,null,null,null,null,null,null,null,null,null,null,null,null,null,null,null,null,null,null,null,null,null,null,null,""]
[null,null,null,null,null,null,null,null,null,null,null,null,null,null,null,null,null,null,null,null,null,null,null,null,null,null,null,null,null,null,null,null,null,null,null,null,null,null,null,""]
[null,null,null,null,null,null,null,null,null,null,null,null,null,null,null,null,null,null,null,null,null,null,null,null,null,null,null,null,null,null,null,null,null,null,null,null,null,null,null,""]
[null,null,null,null,null,null,null,null,null,null,null,null,null,null,null,null,null,null,null,null,null,null,null,null,null,null,null,null,null,null,null,null,null,null,null,null,null,null,null,""]
[null,null,null,null,null,null,null,null,null,null,null,null,null,null,null,null,null,null,null,null,null,null,null,null,null,null,null,null,null,null,null,null,null,null,null,null,null,null,null,""]
[null,null,null,null,null,null,null,null,null,null,null,null,null,null,null,null,null,null,null,null,null,null,null,null,null,null,null,null,null,null,null,null,null,null,null,null,null,null,null,""]
[null,null,null,null,null,null,null,null,null,null,null,null,null,null,null,null,null,null,null,null,null,null,null,null,null,null,null,null,null,null,null,null,null,null,null,null,null,null,null,""]
[null,null,null,null,null,null,null,null,null,null,null,null,null,null,null,null,null,null,null,null,null,null,null,null,null,null,null,null,null,null,null,null,null,null,null,null,null,null,null,""]
[null,null,null,null,null,null,null,null,null,null,null,null,null,null,null,null,null,null,null,null,null,null,null,null,null,null,null,null,null,null,null,null,null,null,null,null,null,null,null,""]
[null,null,null,null,null,null,null,null,null,null,null,null,null,null,null,null,null,null,null,null,null,null,null,null,null,null,null,null,null,null,null,null,null,null,null,null,null,null,null,""]
[null,null,null,null,null,null,null,null,null,null,null,null,null,null,null,null,null,null,null,null,null,null,null,null,null,null,null,null,null,null,null,null,null,null,null,null,null,null,null,""]
[null,null,null,null,null,null,null,null,null,null,null,null,null,null,null,null,null,null,null,null,null,null,null,null,null,null,null,null,null,null,null,null,null,null,null,null,null,null,null,""]
[null,null,null,null,null,null,null,null,null,null,null,null,null,null,null,null,null,null,null,null,null,null,null,null,null,null,null,null,null,null,null,null,null,null,null,null,null,null,null,""]
[null,null,null,null,null,null,null,null,null,null,null,null,null,null,null,null,null,null,null,null,null,null,null,null,null,null,null,null,null,null,null,null,null,null,null,null,null,null,null,""]
[null,null,null,null,null,null,null,null,null,null,null,null,null,null,null,null,null,null,null,null,null,null,null,null,null,null,null,null,null,null,null,null,null,null,null,null,null,null,null,""]
[null,null,null,null,null,null,null,null,null,null,null,null,null,null,null,null,null,null,null,null,null,null,null,null,null,null,null,null,null,null,null,null,null,null,null,null,null,null,null,""]
["TOTAL",null,null,null,null,null,null,null,null,null,null,null,null,null,null,null,null,null,null,null,null,null,null,null,null,null,null,null,null,null,null,null,null,null,null,null,null,null,null,{"$f":"SUM(AN435:AS484)","v":0}]
[]
["OUTROS ANIMAIS"]
["TIPO DE ANIMAL",null,null,null,null,null,null,"DESCRIÇÃO",null,null,null,null,null,null,null,null,null,null,null,null,null,null,null,null,null,null,null,null,null,null,"QTDE",null,null,"VALOR \nUNITÁRIO (R$)",null,null,null,null,null,"VALOR \nTOTAL (R$)"]
[null,null,null,null,null,null,null,null,null,null,null,null,null,null,null,null,null,null,null,null,null,null,null,null,null,null,null,null,null,null,null,null,null,null,null,null,null,null,null,{"$f":"IF(OR(AH489=\"\",AE489=\"\"),\"\",AE489*AH489)","v":""},null,null,null,null,null,null,{"$f":"SUM(AV489:AV538)","v":1},1]
[null,null,null,null,null,null,null,null,null,null,null,null,null,null,null,null,null,null,null,null,null,null,null,null,null,null,null,null,null,null,null,null,null,null,null,null,null,null,null,{"$f":"IF(OR(AH490=\"\",AE490=\"\"),\"\",AE490*AH490)","v":""}]
[null,null,null,null,null,null,null,null,null,null,null,null,null,null,null,null,null,null,null,null,null,null,null,null,null,null,null,null,null,null,null,null,null,null,null,null,null,null,null,""]
[null,null,null,null,null,null,null,null,null,null,null,null,null,null,null,null,null,null,null,null,null,null,null,null,null,null,null,null,null,null,null,null,null,null,null,null,null,null,null,""]
[null,null,null,null,null,null,null,null,null,null,null,null,null,null,null,null,null,null,null,null,null,null,null,null,null,null,null,null,null,null,null,null,null,null,null,null,null,null,null,""]
[null,null,null,null,null,null,null,null,null,null,null,null,null,null,null,null,null,null,null,null,null,null,null,null,null,null,null,null,null,null,null,null,null,null,null,null,null,null,null,""]
[null,null,null,null,null,null,null,null,null,null,null,null,null,null,null,null,null,null,null,null,null,null,null,null,null,null,null,null,null,null,null,null,null,null,null,null,null,null,null,""]
[null,null,null,null,null,null,null,null,null,null,null,null,null,null,null,null,null,null,null,null,null,null,null,null,null,null,null,null,null,null,null,null,null,null,null,null,null,null,null,""]
[null,null,null,null,null,null,null,null,null,null,null,null,null,null,null,null,null,null,null,null,null,null,null,null,null,null,null,null,null,null,null,null,null,null,null,null,null,null,null,""]
[null,null,null,null,null,null,null,null,null,null,null,null,null,null,null,null,null,null,null,null,null,null,null,null,null,null,null,null,null,null,null,null,null,null,null,null,null,null,null,""]
[null,null,null,null,null,null,null,null,null,null,null,null,null,null,null,null,null,null,null,null,null,null,null,null,null,null,null,null,null,null,null,null,null,null,null,null,null,null,null,{"$f":"IF(OR(AH499=\"\",AE499=\"\"),\"\",AE499*AH499)","v":""}]
[null,null,null,null,null,null,null,null,null,null,null,null,null,null,null,null,null,null,null,null,null,null,null,null,null,null,null,null,null,null,null,null,null,null,null,null,null,null,null,{"$f":"IF(OR(AH500=\"\",AE500=\"\"),\"\",AE500*AH500)","v":""}]
[null,null,null,null,null,null,null,null,null,null,null,null,null,null,null,null,null,null,null,null,null,null,null,null,null,null,null,null,null,null,null,null,null,null,null,null,null,null,null,""]
[null,null,null,null,null,null,null,null,null,null,null,null,null,null,null,null,null,null,null,null,null,null,null,null,null,null,null,null,null,null,null,null,null,null,null,null,null,null,null,""]
[null,null,null,null,null,null,null,null,null,null,null,null,null,null,null,null,null,null,null,null,null,null,null,null,null,null,null,null,null,null,null,null,null,null,null,null,null,null,null,""]
[null,null,null,null,null,null,null,null,null,null,null,null,null,null,null,null,null,null,null,null,null,null,null,null,null,null,null,null,null,null,null,null,null,null,null,null,null,null,null,""]
[null,null,null,null,null,null,null,null,null,null,null,null,null,null,null,null,null,null,null,null,null,null,null,null,null,null,null,null,null,null,null,null,null,null,null,null,null,null,null,""]
[null,null,null,null,null,null,null,null,null,null,null,null,null,null,null,null,null,null,null,null,null,null,null,null,null,null,null,null,null,null,null,null,null,null,null,null,null,null,null,""]
[null,null,null,null,null,null,null,null,null,null,null,null,null,null,null,null,null,null,null,null,null,null,null,null,null,null,null,null,null,null,null,null,null,null,null,null,null,null,null,""]
[null,null,null,null,null,null,null,null,null,null,null,null,null,null,null,null,null,null,null,null,null,null,null,null,null,null,null,null,null,null,null,null,null,null,null,null,null,null,null,""]
[null,null,null,null,null,null,null,null,null,null,null,null,null,null,null,null,null,null,null,null,null,null,null,null,null,null,null,null,null,null,null,null,null,null,null,null,null,null,null,{"$f":"IF(OR(AH509=\"\",AE509=\"\"),\"\",AE509*AH509)","v":""}]
[null,null,null,null,null,null,null,null,null,null,null,null,null,null,null,null,null,null,null,null,null,null,null,null,null,null,null,null,null,null,null,null,null,null,null,null,null,null,null,{"$f":"IF(OR(AH510=\"\",AE510=\"\"),\"\",AE510*AH510)","v":""}]
[null,null,null,null,null,null,null,null,null,null,null,null,null,null,null,null,null,null,null,null,null,null,null,null,null,null,null,null,null,null,null,null,null,null,null,null,null,null,null,""]
[null,null,null,null,null,null,null,null,null,null,null,null,null,null,null,null,null,null,null,null,null,null,null,null,null,null,null,null,null,null,null,null,null,null,null,null,null,null,null,""]
[null,null,null,null,null,null,null,null,null,null,null,null,null,null,null,null,null,null,null,null,null,null,null,null,null,null,null,null,null,null,null,null,null,null,null,null,null,null,null,""]
[null,null,null,null,null,null,null,null,null,null,null,null,null,null,null,null,null,null,null,null,null,null,null,null,null,null,null,null,null,null,null,null,null,null,null,null,null,null,null,""]
[null,null,null,null,null,null,null,null,null,null,null,null,null,null,null,null,null,null,null,null,null,null,null,null,null,null,null,null,null,null,null,null,null,null,null,null,null,null,null,""]
[null,null,null,null,null,null,null,null,null,null,null,null,null,null,null,null,null,null,null,null,null,null,null,null,null,null,null,null,null,null,null,null,null,null,null,null,null,null,null,""]
[null,null,null,null,null,null,null,null,null,null,null,null,null,null,null,null,null,null,null,null,null,null,null,null,null,null,null,null,null,null,null,null,null,null,null,null,null,null,null,""]
[null,null,null,null,null,null,null,null,null,null,null,null,null,null,null,null,null,null,null,null,null,null,null,null,null,null,null,null,null,null,null,null,null,null,null,null,null,null,null,""]
[null,null,null,null,null,null,null,null,null,null,null,null,null,null,null,null,null,null,null,null,null,null,null,null,null,null,null,null,null,null,null,null,null,null,null,null,null,null,null,{"$f":"IF(OR(AH519=\"\",AE519=\"\"),\"\",AE519*AH519)","v":""}]
[null,null,null,null,null,null,null,null,null,null,null,null,null,null,null,null,null,null,null,null,null,null,null,null,null,null,null,null,null,null,null,null,null,null,null,null,null,null,null,{"$f":"IF(OR(AH520=\"\",AE520=\"\"),\"\",AE520*AH520)","v":""}]
[null,null,null,null,null,null,null,null,null,null,null,null,null,null,null,null,null,null,null,null,null,null,null,null,null,null,null,null,null,null,null,null,null,null,null,null,null,null,null,""]
[null,null,null,null,null,null,null,null,null,null,null,null,null,null,null,null,null,null,null,null,null,null,null,null,null,null,null,null,null,null,null,null,null,null,null,null,null,null,null,""]
[null,null,null,null,null,null,null,null,null,null,null,null,null,null,null,null,null,null,null,null,null,null,null,null,null,null,null,null,null,null,null,null,null,null,null,null,null,null,null,""]
[null,null,null,null,null,null,null,null,null,null,null,null,null,null,null,null,null,null,null,null,null,null,null,null,null,null,null,null,null,null,null,null,null,null,null,null,null,null,null,""]
[null,null,null,null,null,null,null,null,null,null,null,null,null,null,null,null,null,null,null,null,null,null,null,null,null,null,null,null,null,null,null,null,null,null,null,null,null,null,null,""]
[null,null,null,null,null,null,null,null,null,null,null,null,null,null,null,null,null,null,null,null,null,null,null,null,null,null,null,null,null,null,null,null,null,null,null,null,null,null,null,""]
[null,null,null,null,null,null,null,null,null,null,null,null,null,null,null,null,null,null,null,null,null,null,null,null,null,null,null,null,null,null,null,null,null,null,null,null,null,null,null,""]
[null,null,null,null,null,null,null,null,null,null,null,null,null,null,null,null,null,null,null,null,null,null,null,null,null,null,null,null,null,null,null,null,null,null,null,null,null,null,null,""]
[null,null,null,null,null,null,null,null,null,null,null,null,null,null,null,null,null,null,null,null,null,null,null,null,null,null,null,null,null,null,null,null,null,null,null,null,null,null,null,""]
[null,null,null,null,null,null,null,null,null,null,null,null,null,null,null,null,null,null,null,null,null,null,null,null,null,null,null,null,null,null,null,null,null,null,null,null,null,null,null,""]
[null,null,null,null,null,null,null,null,null,null,null,null,null,null,null,null,null,null,null,null,null,null,null,null,null,null,null,null,null,null,null,null,null,null,null,null,null,null,null,""]
[null,null,null,null,null,null,null,null,null,null,null,null,null,null,null,null,null,null,null,null,null,null,null,null,null,null,null,null,null,null,null,null,null,null,null,null,null,null,null,""]
[null,null,null,null,null,null,null,null,null,null,null,null,null,null,null,null,null,null,null,null,null,null,null,null,null,null,null,null,null,null,null,null,null,null,null,null,null,null,null,""]
[null,null,null,null,null,null,null,null,null,null,null,null,null,null,null,null,null,null,null,null,null,null,null,null,null,null,null,null,null,null,null,null,null,null,null,null,null,null,null,""]
[null,null,null,null,null,null,null,null,null,null,null,null,null,null,null,null,null,null,null,null,null,null,null,null,null,null,null,null,null,null,null,null,null,null,null,null,null,null,null,""]
[null,null,null,null,null,null,null,null,null,null,null,null,null,null,null,null,null,null,null,null,null,null,null,null,null,null,null,null,null,null,null,null,null,null,null,null,null,null,null,""]
[null,null,null,null,null,null,null,null,null,null,null,null,null,null,null,null,null,null,null,null,null,null,null,null,null,null,null,null,null,null,null,null,null,null,null,null,null,null,null,""]
[null,null,null,null,null,null,null,null,null,null,null,null,null,null,null,null,null,null,null,null,null,null,null,null,null,null,null,null,null,null,null,null,null,null,null,null,null,null,null,""]
["TOTAL",null,null,null,null,null,null,null,null,null,null,null,null,null,null,null,null,null,null,null,null,null,null,null,null,null,null,null,null,null,null,null,null,null,null,null,null,null,null,{"$f":"SUM(AN489:AS538)","v":0}]
[]
["PATRIMÔNIO"]
[]
["BENS IMÓVEIS",null,null,null,null,null,null,null,{"$f":"SUM(I544:M546)","v":0},null,null,null,null,null,null,null,"BENS MÓVEIS",null,null,null,null,null,null,null,{"$f":"SUM(Y544:AC546)","v":0},null,null,null,null,null,null,null,"SEMOVENTES",null,null,null,null,null,null,null,{"$f":"SUM(AO544:AS545)","v":0}]
["RURAIS",null,null,null,null,null,null,null,{"$f":"SUMIF(C69:E168,\"RURAL\",AO69:AS168)","v":0},null,null,null,null,null,null,null,"VEÍCULOS",null,null,null,null,null,null,null,{"$f":"SUMIF(A229:F428,\"VEÍCULO\",AO229:AS428)","v":0},null,null,null,null,null,null,null,"BOVINOS",null,null,null,null,null,null,null,{"$f":"SUM(AN435:AS484)","v":0}]
["URBANOS",null,null,null,null,null,null,null,{"$f":"SUMIF(C69:E168,\"URBANO\",AO69:AS168)","v":0},null,null,null,null,null,null,"MÁQUINAS",null,null,null,null,null,null,null,null,{"$f":"SUMIF(A229:F428,\"MÁQUINA\",AO229:AS428)","v":0},null,null,null,null,null,null,null,"OUTROS ANIMAIS",null,null,null,null,null,null,null,{"$f":"SUM(AN489:AS538)","v":0}]
["BENFEITORIAS",null,null,null,null,null,null,null,{"$f":"SUM(AN173:AS222)","v":0},null,null,null,null,null,null,null,"EQUIPAMENTOS",null,null,null,null,null,null,null,{"$f":"SUMIF(A229:F428,\"EQUIPAMENTO\",AO229:AS428)","v":0}]
[null,null,null,null,null,null,null,null,null,null,"PATRIMÔNIO TOTAL:",null,null,null,null,null,null,null,null,null,null,null,null,null,null,{"$f":"I543+Y543+AO543","v":0}]
[]
["RECEITAS E DESPESAS"]
[]
["TIPO DE RENDA:",null,null,null,null,null,"REALIZADA",null,null,null,null,null,null,null,{"$f":"IF(TIPO_RENDA=\"PROJETADA\",\"SAFRA PROJETADA:\",\"SAFRA REALIZADA:\")","v":"SAFRA REALIZADA:"},null,null,null,null,null,null,null,null,null,"/"]
[]
["ATIVIDADES AGRÍCOLAS - REALIZADAS"]
[]
["RECEITA"]
["CULTURA",null,null,null,null,"EMPRESA / GRUPO",null,null,null,null,null,null,"PARTICIPAÇÃO\n(%)",null,null,null,null,"ÁREA\n(ha)",null,null,null,null,"PRODUTIVIDADE (kg/ha)",null,null,null,null,null,"RECEITA\n(R$/kg)",null,null,null,null,null,"VALOR TOTAL\n(R$)",null,null,null,null,null,"VALOR PART. \n(R$)"]
[null,null,null,null,null,null,null,null,null,null,null,null,null,null,null,null,null,null,null,null,null,null,null,null,null,null,null,null,null,null,null,null,null,null,{"$f":"IF(AC557*W557*R557<>0,AC557*W557*R557,\"\")","v":""},null,null,null,null,null,{"$f":"IF(AI557=\"\",\"\",AI557*M557)","v":""},null,null,null,null,null,{"$f":"SUM(AV557:AV576)","v":1},1]
[null,null,null,null,null,null,null,null,null,null,null,null,null,null,null,null,null,null,null,null,null,null,null,null,null,null,null,null,null,null,null,null,null,null,{"$f":"IF(AC558*W558*R558<>0,AC558*W558*R558,\"\")","v":""},null,null,null,null,null,{"$f":"IF(AI558=\"\",\"\",AI558*M558)","v":""}]
[null,null,null,null,null,null,null,null,null,null,null,null,null,null,null,null,null,null,null,null,null,null,null,null,null,null,null,null,null,null,null,null,null,null,"",null,null,null,null,null,""]
[null,null,null,null,null,null,null,null,null,null,null,null,null,null,null,null,null,null,null,null,null,null,null,null,null,null,null,null,null,null,null,null,null,null,"",null,null,null,null,null,""]
[null,null,null,null,null,null,null,null,null,null,null,null,null,null,null,null,null,null,null,null,null,null,null,null,null,null,null,null,null,null,null,null,null,null,"",null,null,null,null,null,""]
[null,null,null,null,null,null,null,null,null,null,null,null,null,null,null,null,null,null,null,null,null,null,null,null,null,null,null,null,null,null,null,null,null,null,"",null,null,null,null,null,""]
[null,null,null,null,null,null,null,null,null,null,null,null,null,null,null,null,null,null,null,null,null,null,null,null,null,null,null,null,null,null,null,null,null,null,"",null,null,null,null,null,""]
[null,null,null,null,null,null,null,null,null,null,null,null,null,null,null,null,null,null,null,null,null,null,null,null,null,null,null,null,null,null,null,null,null,null,"",null,null,null,null,null,""]
[null,null,null,null,null,null,null,null,null,null,null,null,null,null,null,null,null,null,null,null,null,null,null,null,null,null,null,null,null,null,null,null,null,null,"",null,null,null,null,null,""]
[null,null,null,null,null,null,null,null,null,null,null,null,null,null,null,null,null,null,null,null,null,null,null,null,null,null,null,null,null,null,null,null,null,null,"",null,null,null,null,null,""]
[null,null,null,null,null,null,null,null,null,null,null,null,null,null,null,null,null,null,null,null,null,null,null,null,null,null,null,null,null,null,null,null,null,null,"",null,null,null,null,null,""]
[null,null,null,null,null,null,null,null,null,null,null,null,null,null,null,null,null,null,null,null,null,null,null,null,null,null,null,null,null,null,null,null,null,null,"",null,null,null,null,null,""]
[null,null,null,null,null,null,null,null,null,null,null,null,null,null,null,null,null,null,null,null,null,null,null,null,null,null,null,null,null,null,null,null,null,null,"",null,null,null,null,null,""]
[null,null,null,null,null,null,null,null,null,null,null,null,null,null,null,null,null,null,null,null,null,null,null,null,null,null,null,null,null,null,null,null,null,null,"",null,null,null,null,null,""]
[null,null,null,null,null,null,null,null,null,null,null,null,null,null,null,null,null,null,null,null,null,null,null,null,null,null,null,null,null,null,null,null,null,null,"",null,null,null,null,null,""]
[null,null,null,null,null,null,null,null,null,null,null,null,null,null,null,null,null,null,null,null,null,null,null,null,null,null,null,null,null,null,null,null,null,null,"",null,null,null,null,null,""]
[null,null,null,null,null,null,null,null,null,null,null,null,null,null,null,null,null,null,null,null,null,null,null,null,null,null,null,null,null,null,null,null,null,null,"",null,null,null,null,null,""]
[null,null,null,null,null,null,null,null,null,null,null,null,null,null,null,null,null,null,null,null,null,null,null,null,null,null,null,null,null,null,null,null,null,null,"",null,null,null,null,null,""]
[null,null,null,null,null,null,null,null,null,null,null,null,null,null,null,null,null,null,null,null,null,null,null,null,null,null,null,null,null,null,null,null,null,null,"",null,null,null,null,null,""]
[null,null,null,null,null,null,null,null,null,null,null,null,null,null,null,null,null,null,null,null,null,null,null,null,null,null,null,null,null,null,null,null,null,null,"",null,null,null,null,null,""]
["DESPESA"]
["CULTURA",null,null,null,null,"EMPRESA / GRUPO",null,null,null,null,null,null,"PARTICIPAÇÃO\n(%)",null,null,null,null,"ÁREA\n(ha)",null,null,null,null,"PRODUTIVIDADE (kg/ha)",null,null,null,null,null,"DESPESA\n(R$/kg)",null,null,null,null,null,"VALOR TOTAL\n(R$)",null,null,null,null,null,"VALOR PART. \n(R$)"]
[{"$f":"IF(A557=\"\",\"\",A557)","v":""},null,null,null,null,{"$f":"IF(F557=\"\",\"\",F557)","v":""},null,null,null,null,null,null,{"$f":"IF(M557=\"\",\"\",M557)","v":""},null,null,null,null,{"$f":"IF(R557=\"\",\"\",R557)","v":""},null,null,null,null,{"$f":"IF(W557=\"\",\"\",W557)","v":""},null,null,null,null,null,null,null,null,null,null,null,{"$f":"IF(AC579=\"\",\"\",AC579*W579*R579)","v":""},null,null,null,null,null,{"$f":"IF(AI579=\"\",\"\",AI579*M579)","v":""},null,null,null,null,null,{"$f":"SUM(AV579:AV598)","v":1},1]
["",null,null,null,null,"",null,null,null,null,null,null,"",null,null,null,null,"",null,null,null,null,"",null,null,null,null,null,null,null,null,null,null,null,{"$f":"IF(AC580=\"\",\"\",AC580*W580*R580)","v":""},null,null,null,null,null,{"$f":"IF(AI580=\"\",\"\",AI580*M580)","v":""}]
["",null,null,null,null,"",null,null,null,null,null,null,"",null,null,null,null,"",null,null,null,null,"",null,null,null,null,null,null,null,null,null,null,null,"",null,null,null,null,null,""]
["",null,null,null,null,"",null,null,null,null,null,null,"",null,null,null,null,"",null,null,null,null,"",null,null,null,null,null,null,null,null,null,null,null,"",null,null,null,null,null,""]
["",null,null,null,null,"",null,null,null,null,null,null,"",null,null,null,null,"",null,null,null,null,"",null,null,null,null,null,null,null,null,null,null,null,"",null,null,null,null,null,""]
["",null,null,null,null,"",null,null,null,null,null,null,"",null,null,null,null,"",null,null,null,null,"",null,null,null,null,null,null,null,null,null,null,null,"",null,null,null,null,null,""]
["",null,null,null,null,"",null,null,null,null,null,null,"",null,null,null,null,"",null,null,null,null,"",null,null,null,null,null,null,null,null,null,null,null,"",null,null,null,null,null,""]
["",null,null,null,null,"",null,null,null,null,null,null,"",null,null,null,null,"",null,null,null,null,"",null,null,null,null,null,null,null,null,null,null,null,"",null,null,null,null,null,""]
["",null,null,null,null,"",null,null,null,null,null,null,"",null,null,null,null,"",null,null,null,null,"",null,null,null,null,null,null,null,null,null,null,null,"",null,null,null,null,null,""]
["",null,null,null,null,"",null,null,null,null,null,null,"",null,null,null,null,"",null,null,null,null,"",null,null,null,null,null,null,null,null,null,null,null,"",null,null,null,null,null,""]
["",null,null,null,null,"",null,null,null,null,null,null,"",null,null,null,null,"",null,null,null,null,"",null,null,null,null,null,null,null,null,null,null,null,"",null,null,null,null,null,""]
["",null,null,null,null,"",null,null,null,null,null,null,"",null,null,null,null,"",null,null,null,null,"",null,null,null,null,null,null,null,null,null,null,null,"",null,null,null,null,null,""]
["",null,null,null,null,"",null,null,null,null,null,null,"",null,null,null,null,"",null,null,null,null,"",null,null,null,null,null,null,null,null,null,null,null,"",null,null,null,null,null,""]
["",null,null,null,null,"",null,null,null,null,null,null,"",null,null,null,null,"",null,null,null,null,"",null,null,null,null,null,null,null,null,null,null,null,"",null,null,null,null,null,""]
["",null,null,null,null,"",null,null,null,null,null,null,"",null,null,null,null,"",null,null,null,null,"",null,null,null,null,null,null,null,null,null,null,null,"",null,null,null,null,null,""]
["",null,null,null,null,"",null,null,null,null,null,null,"",null,null,null,null,"",null,null,null,null,"",null,null,null,null,null,null,null,null,null,null,null,"",null,null,null,null,null,""]
["",null,null,null,null,"",null,null,null,null,null,null,"",null,null,null,null,"",null,null,null,null,"",null,null,null,null,null,null,null,null,null,null,null,"",null,null,null,null,null,""]
["",null,null,null,null,"",null,null,null,null,null,null,"",null,null,null,null,"",null,null,null,null,"",null,null,null,null,null,null,null,null,null,null,null,"",null,null,null,null,null,""]
["",null,null,null,null,"",null,null,null,null,null,null,"",null,null,null,null,"",null,null,null,null,"",null,null,null,null,null,null,null,null,null,null,null,"",null,null,null,null,null,""]
["",null,null,null,null,"",null,null,null,null,null,null,"",null,null,null,null,"",null,null,null,null,"",null,null,null,null,null,null,null,null,null,null,null,"",null,null,null,null,null,""]
[]
["ATIVIDADES PECUÁRIAS - REALIZADAS"]
[]
["RECEITA"]
["ATIVIDADE",null,null,null,null,null,"EMPRESA / GRUPO",null,null,null,null,null,null,"PARTICIPAÇÃO\n(%)",null,null,null,null,"UNIDADE DE\nPRODUÇÃO",null,null,null,null,"PRODUTIVIDADE",null,null,null,null,null,"RECEITA\n(R$/UN)",null,null,null,null,"VALOR TOTAL\n(R$)",null,null,null,null,null,"VALOR PART. \n(R$)"]
[null,null,null,null,null,null,null,null,null,null,null,null,null,null,null,null,null,null,{"$f":"IF(A604=\"LEITE\",\"LITROS\",IF(A604<>\"\",\"CABEÇAS\",\"\"))","v":""},null,null,null,null,null,null,null,null,null,null,null,null,null,null,null,{"$f":"IF(X604*AD604=0,\"\",X604*AD604)","v":""},null,null,null,null,null,{"$f":"IF(AI604=\"\",\"\",AI604*N604)","v":""},null,null,null,null,null,{"$f":"SUM(AV604:AV623)","v":1},1]
[null,null,null,null,null,null,null,null,null,null,null,null,null,null,null,null,null,null,{"$f":"IF(A605=\"LEITE\",\"LITROS\",IF(A605<>\"\",\"CABEÇAS\",\"\"))","v":""},null,null,null,null,null,null,null,null,null,null,null,null,null,null,null,{"$f":"IF(X605*AD605=0,\"\",X605*AD605)","v":""},null,null,null,null,null,{"$f":"IF(AI605=\"\",\"\",AI605*N605)","v":""}]
[null,null,null,null,null,null,null,null,null,null,null,null,null,null,null,null,null,null,{"$f":"IF(A606=\"LEITE\",\"LITROS\",IF(A606<>\"\",\"CABEÇAS\",\"\"))","v":""},null,null,null,null,null,null,null,null,null,null,null,null,null,null,null,{"$f":"IF(X606*AD606=0,\"\",X606*AD606)","v":""},null,null,null,null,null,{"$f":"IF(AI606=\"\",\"\",AI606*N606)","v":""}]
[null,null,null,null,null,null,null,null,null,null,null,null,null,null,null,null,null,null,"",null,null,null,null,null,null,null,null,null,null,null,null,null,null,null,"",null,null,null,null,null,""]
[null,null,null,null,null,null,null,null,null,null,null,null,null,null,null,null,null,null,"",null,null,null,null,null,null,null,null,null,null,null,null,null,null,null,"",null,null,null,null,null,""]
[null,null,null,null,null,null,null,null,null,null,null,null,null,null,null,null,null,null,"",null,null,null,null,null,null,null,null,null,null,null,null,null,null,null,"",null,null,null,null,null,""]
[null,null,null,null,null,null,null,null,null,null,null,null,null,null,null,null,null,null,"",null,null,null,null,null,null,null,null,null,null,null,null,null,null,null,"",null,null,null,null,null,""]
[null,null,null,null,null,null,null,null,null,null,null,null,null,null,null,null,null,null,"",null,null,null,null,null,null,null,null,null,null,null,null,null,null,null,"",null,null,null,null,null,""]
[null,null,null,null,null,null,null,null,null,null,null,null,null,null,null,null,null,null,"",null,null,null,null,null,null,null,null,null,null,null,null,null,null,null,{"$f":"IF(X612*AD612=0,\"\",X612*AD612)","v":""},null,null,null,null,null,""]
[null,null,null,null,null,null,null,null,null,null,null,null,null,null,null,null,null,null,"",null,null,null,null,null,null,null,null,null,null,null,null,null,null,null,"",null,null,null,null,null,""]
[null,null,null,null,null,null,null,null,null,null,null,null,null,null,null,null,null,null,"",null,null,null,null,null,null,null,null,null,null,null,null,null,null,null,"",null,null,null,null,null,""]
[null,null,null,null,null,null,null,null,null,null,null,null,null,null,null,null,null,null,"",null,null,null,null,null,null,null,null,null,null,null,null,null,null,null,"",null,null,null,null,null,""]
[null,null,null,null,null,null,null,null,null,null,null,null,null,null,null,null,null,null,"",null,null,null,null,null,null,null,null,null,null,null,null,null,null,null,"",null,null,null,null,null,""]
[null,null,null,null,null,null,null,null,null,null,null,null,null,null,null,null,null,null,"",null,null,null,null,null,null,null,null,null,null,null,null,null,null,null,"",null,null,null,null,null,""]
[null,null,null,null,null,null,null,null,null,null,null,null,null,null,null,null,null,null,"",null,null,null,null,null,null,null,null,null,null,null,null,null,null,null,"",null,null,null,null,null,""]
[null,null,null,null,null,null,null,null,null,null,null,null,null,null,null,null,null,null,"",null,null,null,null,null,null,null,null,null,null,null,null,null,null,null,"",null,null,null,null,null,""]
[null,null,null,null,null,null,null,null,null,null,null,null,null,null,null,null,null,null,"",null,null,null,null,null,null,null,null,null,null,null,null,null,null,null,"",null,null,null,null,null,""]
[null,null,null,null,null,null,null,null,null,null,null,null,null,null,null,null,null,null,"",null,null,null,null,null,null,null,null,null,null,null,null,null,null,null,"",null,null,null,null,null,""]
[null,null,null,null,null,null,null,null,null,null,null,null,null,null,null,null,null,null,"",null,null,null,null,null,null,null,null,null,null,null,null,null,null,null,"",null,null,null,null,null,""]
[null,null,null,null,null,null,null,null,null,null,null,null,null,null,null,null,null,null,"",null,null,null,null,null,null,null,null,null,null,null,null,null,null,null,"",null,null,null,null,null,""]
["DESPESA"]
["ATIVIDADE",null,null,null,null,null,"EMPRESA / GRUPO",null,null,null,null,null,null,"PARTICIPAÇÃO\n(%)",null,null,null,null,"UNIDADE DE\nPRODUÇÃO",null,null,null,null,"PRODUTIVIDADE",null,null,null,null,null,"DESPESA\n(R$/UN)",null,null,null,null,"VALOR TOTAL\n(R$)",null,null,null,null,null,"VALOR PART. \n(R$)"]
[{"$f":"IF(A604=\"\",\"\",A604)","v":""},null,null,null,null,null,{"$f":"IF(G604=\"\",\"\",G604)","v":""},null,null,null,null,null,null,{"$f":"IF(N604=\"\",\"\",N604)","v":""},null,null,null,null,{"$f":"IF(S604=\"\",\"\",S604)","v":""},null,null,null,null,{"$f":"IF(X604=\"\",\"\",X604)","v":""},null,null,null,null,null,null,null,null,null,null,{"$f":"IF(OR(AD626=\"\",X626=\"\"),\"\",AD626*X626)","v":""},null,null,null,null,null,{"$f":"IF(OR(AD626=\"\",X626=\"\",N626=\"\"),\"\",AD626*X626*N626)","v":""},null,null,null,null,null,{"$f":"SUM(AV626:AV645)","v":1},1]
["",null,null,null,null,null,"",null,null,null,null,null,null,"",null,null,null,null,"",null,null,null,null,"",null,null,null,null,null,null,null,null,null,null,{"$f":"IF(OR(AD627=\"\",X627=\"\"),\"\",AD627*X627)","v":""},null,null,null,null,null,{"$f":"IF(OR(AD627=\"\",X627=\"\",N627=\"\"),\"\",AD627*X627*N627)","v":""}]
["",null,null,null,null,null,"",null,null,null,null,null,null,"",null,null,null,null,"",null,null,null,null,"",null,null,null,null,null,null,null,null,null,null,"",null,null,null,null,null,""]
["",null,null,null,null,null,"",null,null,null,null,null,null,"",null,null,null,null,"",null,null,null,null,"",null,null,null,null,null,null,null,null,null,null,"",null,null,null,null,null,""]
["",null,null,null,null,null,"",null,null,null,null,null,null,"",null,null,null,null,"",null,null,null,null,"",null,null,null,null,null,null,null,null,null,null,"",null,null,null,null,null,""]
["",null,null,null,null,null,"",null,null,null,null,null,null,"",null,null,null,null,"",null,null,null,null,"",null,null,null,null,null,null,null,null,null,null,"",null,null,null,null,null,""]
["",null,null,null,null,null,"",null,null,null,null,null,null,"",null,null,null,null,"",null,null,null,null,"",null,null,null,null,null,null,null,null,null,null,"",null,null,null,null,null,""]
["",null,null,null,null,null,"",null,null,null,null,null,null,"",null,null,null,null,"",null,null,null,null,"",null,null,null,null,null,null,null,null,null,null,"",null,null,null,null,null,""]
["",null,null,null,null,null,"",null,null,null,null,null,null,"",null,null,null,null,"",null,null,null,null,"",null,null,null,null,null,null,null,null,null,null,"",null,null,null,null,null,""]
["",null,null,null,null,null,"",null,null,null,null,null,null,"",null,null,null,null,"",null,null,null,null,"",null,null,null,null,null,null,null,null,null,null,"",null,null,null,null,null,""]
["",null,null,null,null,null,"",null,null,null,null,null,null,"",null,null,null,null,"",null,null,null,null,"",null,null,null,null,null,null,null,null,null,null,"",null,null,null,null,null,""]
["",null,null,null,null,null,"",null,null,null,null,null,null,"",null,null,null,null,"",null,null,null,null,"",null,null,null,null,null,null,null,null,null,null,"",null,null,null,null,null,""]
["",null,null,null,null,null,"",null,null,null,null,null,null,"",null,null,null,null,"",null,null,null,null,"",null,null,null,null,null,null,null,null,null,null,"",null,null,null,null,null,""]
["",null,null,null,null,null,"",null,null,null,null,null,null,"",null,null,null,null,"",null,null,null,null,"",null,null,null,null,null,null,null,null,null,null,"",null,null,null,null,null,""]
["",null,null,null,null,null,"",null,null,null,null,null,null,"",null,null,null,null,"",null,null,null,null,"",null,null,null,null,null,null,null,null,null,null,"",null,null,null,null,null,""]
["",null,null,null,null,null,"",null,null,null,null,null,null,"",null,null,null,null,"",null,null,null,null,"",null,null,null,null,null,null,null,null,null,null,"",null,null,null,null,null,""]
["",null,null,null,null,null,"",null,null,null,null,null,null,"",null,null,null,null,"",null,null,null,null,"",null,null,null,null,null,null,null,null,null,null,"",null,null,null,null,null,""]
["",null,null,null,null,null,"",null,null,null,null,null,null,"",null,null,null,null,"",null,null,null,null,"",null,null,null,null,null,null,null,null,null,null,"",null,null,null,null,null,""]
["",null,null,null,null,null,"",null,null,null,null,null,null,"",null,null,null,null,"",null,null,null,null,"",null,null,null,null,null,null,null,null,null,null,"",null,null,null,null,null,""]
["",null,null,null,null,null,"",null,null,null,null,null,null,"",null,null,null,null,"",null,null,null,null,"",null,null,null,null,null,null,null,null,null,null,"",null,null,null,null,null,""]
[]
["MARGEM FINANCEIRA - REALIZADA"]
[]
["RECEITAS",null,null,null,null,null,null,null,null,null,null,null,null,null,null,null,null,{"$f":"IF(SUM(R650:W651)+SUM(R657:W660)=0,0,SUM(R650:W651)+SUM(R657:W660))","v":0},null,null,null,null,null,"DESPESAS",null,null,null,null,null,null,null,null,null,null,null,null,null,null,null,{"$f":"IF(SUM(AN650:AS654)+SUM(AN657:AS660)+AN655=0,0,SUM(AN650:AS654)+SUM(AN657:AS660)+AN655*12)","v":0}]
["RECEITA REALIZADA ATIVIDADES AGRÍCOLAS",null,null,null,null,null,null,null,null,null,null,null,null,null,null,null,null,{"$f":"SUM(AO557:AS576)","v":0},null,null,null,null,null,"CUSTO REALIZADO ATIVIDADES AGRÍCOLAS",null,null,null,null,null,null,null,null,null,null,null,null,null,null,null,{"$f":"SUM(AO579:AS598)","v":0}]
["RECEITA REALIZADA ATIVIDADES PECUÁRIAS",null,null,null,null,null,null,null,null,null,null,null,null,null,null,null,null,{"$f":"SUM(AO604:AS623)","v":0},null,null,null,null,null,"CUSTO REALIZADO ATIVIDADES PECUÁRIAS",null,null,null,null,null,null,null,null,null,null,null,null,null,null,null,{"$f":"SUM(AO626:AS645)","v":0}]
[null,null,null,null,null,null,null,null,null,null,null,null,null,null,null,null,null,null,null,null,null,null,null,"ARRENDAMENTOS"]
[null,null,null,null,null,null,null,null,null,null,null,null,null,null,null,null,null,null,null,null,null,null,null,"JUROS DE FINANCIAMENTOS"]
[null,null,null,null,null,null,null,null,null,null,null,null,null,null,null,null,null,null,null,null,null,null,null,"MANUTENÇÃO DE MAQUINÁRIO"]
[null,null,null,null,null,null,null,null,null,null,null,null,null,null,null,null,null,null,null,null,null,null,null,"MANUTENÇÃO FAMILIAR MENSAL"]
["OUTRAS RECEITAS",null,null,null,null,null,null,null,null,null,null,null,null,null,null,null,null,null,null,null,null,null,null,"OUTRAS DESPESAS"]
[]
[]
[]
[]
[null,null,null,null,null,null,null,null,null,null,"MARGEM FINANCEIRA LÍQUIDA:",null,null,null,null,null,null,null,null,null,null,null,null,null,null,{"$f":"IF(AND(R649=\"\",AN649=\"\"),\"\",R649-AN649)","v":0}]
[]
["ATIVIDADE AGRÍCOLAS - PROJETADAS"]
[]
["RECEITA"]
["CULTURA",null,null,null,null,"EMPRESA / GRUPO",null,null,null,null,null,null,"PARTICIPAÇÃO\n(%)",null,null,null,null,"ÁREA\n(ha)",null,null,null,null,"PRODUTIVIDADE (kg/ha)",null,null,null,null,null,"RECEITA\n(R$/kg)",null,null,null,null,null,"VALOR TOTAL\n(R$)",null,null,null,null,null,"VALOR PART. \n(R$)"]
[null,null,null,null,null,null,null,null,null,null,null,null,null,null,null,null,null,null,null,null,null,null,null,null,null,null,null,null,null,null,null,null,null,null,{"$f":"IF(AC667*W667*R667<>0,AC667*W667*R667,\"\")","v":""},null,null,null,null,null,{"$f":"IF(AI667=\"\",\"\",AI667*M667)","v":""},null,null,null,null,null,{"$f":"SUM(AV667:AV686)","v":1},1]
[null,null,null,null,null,null,null,null,null,null,null,null,null,null,null,null,null,null,null,null,null,null,null,null,null,null,null,null,null,null,null,null,null,null,{"$f":"IF(AC668*W668*R668<>0,AC668*W668*R668,\"\")","v":""},null,null,null,null,null,{"$f":"IF(AI668=\"\",\"\",AI668*M668)","v":""}]
[null,null,null,null,null,null,null,null,null,null,null,null,null,null,null,null,null,null,null,null,null,null,null,null,null,null,null,null,null,null,null,null,null,null,"",null,null,null,null,null,""]
[null,null,null,null,null,null,null,null,null,null,null,null,null,null,null,null,null,null,null,null,null,null,null,null,null,null,null,null,null,null,null,null,null,null,"",null,null,null,null,null,""]
[null,null,null,null,null,null,null,null,null,null,null,null,null,null,null,null,null,null,null,null,null,null,null,null,null,null,null,null,null,null,null,null,null,null,"",null,null,null,null,null,""]
[null,null,null,null,null,null,null,null,null,null,null,null,null,null,null,null,null,null,null,null,null,null,null,null,null,null,null,null,null,null,null,null,null,null,"",null,null,null,null,null,""]
[null,null,null,null,null,null,null,null,null,null,null,null,null,null,null,null,null,null,null,null,null,null,null,null,null,null,null,null,null,null,null,null,null,null,"",null,null,null,null,null,""]
[null,null,null,null,null,null,null,null,null,null,null,null,null,null,null,null,null,null,null,null,null,null,null,null,null,null,null,null,null,null,null,null,null,null,"",null,null,null,null,null,""]
[null,null,null,null,null,null,null,null,null,null,null,null,null,null,null,null,null,null,null,null,null,null,null,null,null,null,null,null,null,null,null,null,null,null,"",null,null,null,null,null,""]
[null,null,null,null,null,null,null,null,null,null,null,null,null,null,null,null,null,null,null,null,null,null,null,null,null,null,null,null,null,null,null,null,null,null,"",null,null,null,null,null,""]
[null,null,null,null,null,null,null,null,null,null,null,null,null,null,null,null,null,null,null,null,null,null,null,null,null,null,null,null,null,null,null,null,null,null,"",null,null,null,null,null,""]
[null,null,null,null,null,null,null,null,null,null,null,null,null,null,null,null,null,null,null,null,null,null,null,null,null,null,null,null,null,null,null,null,null,null,"",null,null,null,null,null,""]
[null,null,null,null,null,null,null,null,null,null,null,null,null,null,null,null,null,null,null,null,null,null,null,null,null,null,null,null,null,null,null,null,null,null,"",null,null,null,null,null,""]
[null,null,null,null,null,null,null,null,null,null,null,null,null,null,null,null,null,null,null,null,null,null,null,null,null,null,null,null,null,null,null,null,null,null,"",null,null,null,null,null,""]
[null,null,null,null,null,null,null,null,null,null,null,null,null,null,null,null,null,null,null,null,null,null,null,null,null,null,null,null,null,null,null,null,null,null,"",null,null,null,null,null,""]
[null,null,null,null,null,null,null,null,null,null,null,null,null,null,null,null,null,null,null,null,null,null,null,null,null,null,null,null,null,null,null,null,null,null,"",null,null,null,null,null,""]
[null,null,null,null,null,null,null,null,null,null,null,null,null,null,null,null,null,null,null,null,null,null,null,null,null,null,null,null,null,null,null,null,null,null,"",null,null,null,null,null,""]
[null,null,null,null,null,null,null,null,null,null,null,null,null,null,null,null,null,null,null,null,null,null,null,null,null,null,null,null,null,null,null,null,null,null,"",null,null,null,null,null,""]
[null,null,null,null,null,null,null,null,null,null,null,null,null,null,null,null,null,null,null,null,null,null,null,null,null,null,null,null,null,null,null,null,null,null,"",null,null,null,null,null,""]
[null,null,null,null,null,null,null,null,null,null,null,null,null,null,null,null,null,null,null,null,null,null,null,null,null,null,null,null,null,null,null,null,null,null,"",null,null,null,null,null,""]
["DESPESA"]
["CULTURA",null,null,null,null,"EMPRESA / GRUPO",null,null,null,null,null,null,"PARTICIPAÇÃO\n(%)",null,null,null,null,"ÁREA\n(ha)",null,null,null,null,"PRODUTIVIDADE (kg/ha)",null,null,null,null,null,"DESPESA\n(R$/kg)",null,null,null,null,null,"VALOR TOTAL\n(R$)",null,null,null,null,null,"VALOR PART. \n(R$)"]
[{"$f":"IF(A667=\"\",\"\",A667)","v":""},null,null,null,null,{"$f":"IF(F667=\"\",\"\",F667)","v":""},null,null,null,null,null,null,{"$f":"IF(M667=\"\",\"\",M667)","v":""},null,null,null,null,{"$f":"IF(R667=\"\",\"\",R667)","v":""},null,null,null,null,{"$f":"IF(W667=\"\",\"\",W667)","v":""},null,null,null,null,null,null,null,null,null,null,null,{"$f":"IF(AC689=\"\",\"\",AC689*W689*R689)","v":""},null,null,null,null,null,{"$f":"IF(AI689=\"\",\"\",AI689*M689)","v":""},null,null,null,null,null,{"$f":"SUM(AV689:AV708)","v":1},1]
["",null,null,null,null,"",null,null,null,null,null,null,"",null,null,null,null,"",null,null,null,null,"",null,null,null,null,null,null,null,null,null,null,null,{"$f":"IF(AC690=\"\",\"\",AC690*W690*R690)","v":""},null,null,null,null,null,{"$f":"IF(AI690=\"\",\"\",AI690*M690)","v":""}]
["",null,null,null,null,"",null,null,null,null,null,null,"",null,null,null,null,"",null,null,null,null,"",null,null,null,null,null,null,null,null,null,null,null,"",null,null,null,null,null,""]
["",null,null,null,null,"",null,null,null,null,null,null,"",null,null,null,null,"",null,null,null,null,"",null,null,null,null,null,null,null,null,null,null,null,"",null,null,null,null,null,""]
["",null,null,null,null,"",null,null,null,null,null,null,"",null,null,null,null,"",null,null,null,null,"",null,null,null,null,null,null,null,null,null,null,null,"",null,null,null,null,null,""]
["",null,null,null,null,"",null,null,null,null,null,null,"",null,null,null,null,"",null,null,null,null,"",null,null,null,null,null,null,null,null,null,null,null,"",null,null,null,null,null,""]
["",null,null,null,null,"",null,null,null,null,null,null,"",null,null,null,null,"",null,null,null,null,"",null,null,null,null,null,null,null,null,null,null,null,"",null,null,null,null,null,""]
["",null,null,null,null,"",null,null,null,null,null,null,"",null,null,null,null,"",null,null,null,null,"",null,null,null,null,null,null,null,null,null,null,null,"",null,null,null,null,null,""]
["",null,null,null,null,"",null,null,null,null,null,null,"",null,null,null,null,"",null,null,null,null,"",null,null,null,null,null,null,null,null,null,null,null,"",null,null,null,null,null,""]
["",null,null,null,null,"",null,null,null,null,null,null,"",null,null,null,null,"",null,null,null,null,"",null,null,null,null,null,null,null,null,null,null,null,"",null,null,null,null,null,""]
["",null,null,null,null,"",null,null,null,null,null,null,"",null,null,null,null,"",null,null,null,null,"",null,null,null,null,null,null,null,null,null,null,null,"",null,null,null,null,null,""]
["",null,null,null,null,"",null,null,null,null,null,null,"",null,null,null,null,"",null,null,null,null,"",null,null,null,null,null,null,null,null,null,null,null,"",null,null,null,null,null,""]
["",null,null,null,null,"",null,null,null,null,null,null,"",null,null,null,null,"",null,null,null,null,"",null,null,null,null,null,null,null,null,null,null,null,"",null,null,null,null,null,""]
["",null,null,null,null,"",null,null,null,null,null,null,"",null,null,null,null,"",null,null,null,null,"",null,null,null,null,null,null,null,null,null,null,null,"",null,null,null,null,null,""]
["",null,null,null,null,"",null,null,null,null,null,null,"",null,null,null,null,"",null,null,null,null,"",null,null,null,null,null,null,null,null,null,null,null,"",null,null,null,null,null,""]
["",null,null,null,null,"",null,null,null,null,null,null,"",null,null,null,null,"",null,null,null,null,"",null,null,null,null,null,null,null,null,null,null,null,"",null,null,null,null,null,""]
["",null,null,null,null,"",null,null,null,null,null,null,"",null,null,null,null,"",null,null,null,null,"",null,null,null,null,null,null,null,null,null,null,null,"",null,null,null,null,null,""]
["",null,null,null,null,"",null,null,null,null,null,null,"",null,null,null,null,"",null,null,null,null,"",null,null,null,null,null,null,null,null,null,null,null,"",null,null,null,null,null,""]
["",null,null,null,null,"",null,null,null,null,null,null,"",null,null,null,null,"",null,null,null,null,"",null,null,null,null,null,null,null,null,null,null,null,"",null,null,null,null,null,""]
["",null,null,null,null,"",null,null,null,null,null,null,"",null,null,null,null,"",null,null,null,null,"",null,null,null,null,null,null,null,null,null,null,null,"",null,null,null,null,null,""]
[]
["ATIVIDADE PECUÁRIAS - PROJETADAS"]
[]
["RECEITA"]
["ATIVIDADE",null,null,null,null,null,"EMPRESA / GRUPO",null,null,null,null,null,null,"PARTICIPAÇÃO\n(%)",null,null,null,null,"UNIDADE DE\nPRODUÇÃO",null,null,null,null,"PRODUTIVIDADE",null,null,null,null,null,"RECEITA\n(R$/UN)",null,null,null,null,"VALOR TOTAL\n(R$)",null,null,null,null,null,"VALOR PART. \n(R$)"]
[null,null,null,null,null,null,null,null,null,null,null,null,null,null,null,null,null,null,null,null,null,null,null,null,null,null,null,null,null,null,null,null,null,null,{"$f":"IF(X714*AD714=0,\"\",X714*AD714)","v":""},null,null,null,null,null,{"$f":"IF(AI714=\"\",\"\",AI714*N714)","v":""},null,null,null,null,null,{"$f":"SUM(AV714:AV733)","v":1},1]
[null,null,null,null,null,null,null,null,null,null,null,null,null,null,null,null,null,null,{"$f":"IF(A715=\"LEITE\",\"LITROS\",IF(A715<>\"\",\"CABEÇAS\",\"\"))","v":""},null,null,null,null,null,null,null,null,null,null,null,null,null,null,null,{"$f":"IF(X715*AD715=0,\"\",X715*AD715)","v":""},null,null,null,null,null,{"$f":"IF(AI715=\"\",\"\",AI715*N715)","v":""}]
[null,null,null,null,null,null,null,null,null,null,null,null,null,null,null,null,null,null,{"$f":"IF(A716=\"LEITE\",\"LITROS\",IF(A716<>\"\",\"CABEÇAS\",\"\"))","v":""},null,null,null,null,null,null,null,null,null,null,null,null,null,null,null,{"$f":"IF(X716*AD716=0,\"\",X716*AD716)","v":""},null,null,null,null,null,{"$f":"IF(AI716=\"\",\"\",AI716*N716)","v":""}]
[null,null,null,null,null,null,null,null,null,null,null,null,null,null,null,null,null,null,"",null,null,null,null,null,null,null,null,null,null,null,null,null,null,null,"",null,null,null,null,null,""]
[null,null,null,null,null,null,null,null,null,null,null,null,null,null,null,null,null,null,"",null,null,null,null,null,null,null,null,null,null,null,null,null,null,null,"",null,null,null,null,null,""]
[null,null,null,null,null,null,null,null,null,null,null,null,null,null,null,null,null,null,"",null,null,null,null,null,null,null,null,null,null,null,null,null,null,null,"",null,null,null,null,null,""]
[null,null,null,null,null,null,null,null,null,null,null,null,null,null,null,null,null,null,"",null,null,null,null,null,null,null,null,null,null,null,null,null,null,null,"",null,null,null,null,null,""]
[null,null,null,null,null,null,null,null,null,null,null,null,null,null,null,null,null,null,"",null,null,null,null,null,null,null,null,null,null,null,null,null,null,null,"",null,null,null,null,null,""]
[null,null,null,null,null,null,null,null,null,null,null,null,null,null,null,null,null,null,"",null,null,null,null,null,null,null,null,null,null,null,null,null,null,null,{"$f":"IF(X722*AD722=0,\"\",X722*AD722)","v":""},null,null,null,null,null,""]
[null,null,null,null,null,null,null,null,null,null,null,null,null,null,null,null,null,null,"",null,null,null,null,null,null,null,null,null,null,null,null,null,null,null,{"$f":"IF(X723*AD723=0,\"\",X723*AD723)","v":""},null,null,null,null,null,""]
[null,null,null,null,null,null,null,null,null,null,null,null,null,null,null,null,null,null,"",null,null,null,null,null,null,null,null,null,null,null,null,null,null,null,"",null,null,null,null,null,""]
[null,null,null,null,null,null,null,null,null,null,null,null,null,null,null,null,null,null,"",null,null,null,null,null,null,null,null,null,null,null,null,null,null,null,"",null,null,null,null,null,""]
[null,null,null,null,null,null,null,null,null,null,null,null,null,null,null,null,null,null,"",null,null,null,null,null,null,null,null,null,null,null,null,null,null,null,"",null,null,null,null,null,""]
[null,null,null,null,null,null,null,null,null,null,null,null,null,null,null,null,null,null,"",null,null,null,null,null,null,null,null,null,null,null,null,null,null,null,"",null,null,null,null,null,""]
[null,null,null,null,null,null,null,null,null,null,null,null,null,null,null,null,null,null,"",null,null,null,null,null,null,null,null,null,null,null,null,null,null,null,"",null,null,null,null,null,""]
[null,null,null,null,null,null,null,null,null,null,null,null,null,null,null,null,null,null,"",null,null,null,null,null,null,null,null,null,null,null,null,null,null,null,"",null,null,null,null,null,""]
[null,null,null,null,null,null,null,null,null,null,null,null,null,null,null,null,null,null,"",null,null,null,null,null,null,null,null,null,null,null,null,null,null,null,"",null,null,null,null,null,""]
[null,null,null,null,null,null,null,null,null,null,null,null,null,null,null,null,null,null,"",null,null,null,null,null,null,null,null,null,null,null,null,null,null,null,"",null,null,null,null,null,""]
[null,null,null,null,null,null,null,null,null,null,null,null,null,null,null,null,null,null,"",null,null,null,null,null,null,null,null,null,null,null,null,null,null,null,"",null,null,null,null,null,""]
[null,null,null,null,null,null,null,null,null,null,null,null,null,null,null,null,null,null,"",null,null,null,null,null,null,null,null,null,null,null,null,null,null,null,"",null,null,null,null,null,""]
["DESPESA"]
["ATIVIDADE",null,null,null,null,null,"EMPRESA / GRUPO",null,null,null,null,null,null,"PARTICIPAÇÃO\n(%)",null,null,null,null,"UNIDADE DE\nPRODUÇÃO",null,null,null,null,"PRODUTIVIDADE",null,null,null,null,null,"DESPESA\n(R$/UN)",null,null,null,null,"VALOR TOTAL\n(R$)",null,null,null,null,null,"VALOR PART. \n(R$)"]
[{"$f":"IF(A714=\"\",\"\",A714)","v":""},null,null,null,null,null,{"$f":"IF(G714=\"\",\"\",G714)","v":""},null,null,null,null,null,null,{"$f":"IF(N714=\"\",\"\",N714)","v":""},null,null,null,null,{"$f":"IF(S714=\"\",\"\",S714)","v":""},null,null,null,null,{"$f":"IF(X714=\"\",\"\",X714)","v":""},null,null,null,null,null,null,null,null,null,null,{"$f":"IF(OR(AD736=\"\",X736=\"\"),\"\",AD736*X736)","v":""},null,null,null,null,null,{"$f":"IF(OR(AD736=\"\",X736=\"\",N736=\"\"),\"\",AD736*X736*N736)","v":""},null,null,null,null,null,{"$f":"SUM(AV736:AV755)","v":1},1]
["",null,null,null,null,null,"",null,null,null,null,null,null,"",null,null,null,null,"",null,null,null,null,"",null,null,null,null,null,null,null,null,null,null,{"$f":"IF(OR(AD737=\"\",X737=\"\"),\"\",AD737*X737)","v":""},null,null,null,null,null,{"$f":"IF(OR(AD737=\"\",X737=\"\",N737=\"\"),\"\",AD737*X737*N737)","v":""}]
["",null,null,null,null,null,"",null,null,null,null,null,null,"",null,null,null,null,"",null,null,null,null,"",null,null,null,null,null,null,null,null,null,null,"",null,null,null,null,null,""]
["",null,null,null,null,null,"",null,null,null,null,null,null,"",null,null,null,null,"",null,null,null,null,"",null,null,null,null,null,null,null,null,null,null,"",null,null,null,null,null,""]
["",null,null,null,null,null,"",null,null,null,null,null,null,"",null,null,null,null,"",null,null,null,null,"",null,null,null,null,null,null,null,null,null,null,"",null,null,null,null,null,""]
["",null,null,null,null,null,"",null,null,null,null,null,null,"",null,null,null,null,"",null,null,null,null,"",null,null,null,null,null,null,null,null,null,null,"",null,null,null,null,null,""]
["",null,null,null,null,null,"",null,null,null,null,null,null,"",null,null,null,null,"",null,null,null,null,"",null,null,null,null,null,null,null,null,null,null,"",null,null,null,null,null,""]
["",null,null,null,null,null,"",null,null,null,null,null,null,"",null,null,null,null,"",null,null,null,null,"",null,null,null,null,null,null,null,null,null,null,"",null,null,null,null,null,""]
["",null,null,null,null,null,"",null,null,null,null,null,null,"",null,null,null,null,"",null,null,null,null,"",null,null,null,null,null,null,null,null,null,null,"",null,null,null,null,null,""]
["",null,null,null,null,null,"",null,null,null,null,null,null,"",null,null,null,null,"",null,null,null,null,"",null,null,null,null,null,null,null,null,null,null,"",null,null,null,null,null,""]
["",null,null,null,null,null,"",null,null,null,null,null,null,"",null,null,null,null,"",null,null,null,null,"",null,null,null,null,null,null,null,null,null,null,"",null,null,null,null,null,""]
["",null,null,null,null,null,"",null,null,null,null,null,null,"",null,null,null,null,"",null,null,null,null,"",null,null,null,null,null,null,null,null,null,null,"",null,null,null,null,null,""]
["",null,null,null,null,null,"",null,null,null,null,null,null,"",null,null,null,null,"",null,null,null,null,"",null,null,null,null,null,null,null,null,null,null,"",null,null,null,null,null,""]
["",null,null,null,null,null,"",null,null,null,null,null,null,"",null,null,null,null,"",null,null,null,null,"",null,null,null,null,null,null,null,null,null,null,"",null,null,null,null,null,""]
["",null,null,null,null,null,"",null,null,null,null,null,null,"",null,null,null,null,"",null,null,null,null,"",null,null,null,null,null,null,null,null,null,null,"",null,null,null,null,null,""]
["",null,null,null,null,null,"",null,null,null,null,null,null,"",null,null,null,null,"",null,null,null,null,"",null,null,null,null,null,null,null,null,null,null,"",null,null,null,null,null,""]
["",null,null,null,null,null,"",null,null,null,null,null,null,"",null,null,null,null,"",null,null,null,null,"",null,null,null,null,null,null,null,null,null,null,"",null,null,null,null,null,""]
["",null,null,null,null,null,"",null,null,null,null,null,null,"",null,null,null,null,"",null,null,null,null,"",null,null,null,null,null,null,null,null,null,null,"",null,null,null,null,null,""]
["",null,null,null,null,null,"",null,null,null,null,null,null,"",null,null,null,null,"",null,null,null,null,"",null,null,null,null,null,null,null,null,null,null,"",null,null,null,null,null,""]
["",null,null,null,null,null,"",null,null,null,null,null,null,"",null,null,null,null,"",null,null,null,null,"",null,null,null,null,null,null,null,null,null,null,"",null,null,null,null,null,""]
[]
["MARGEM FINANCEIRA - PROJETADA"]
[]
["RECEITAS",null,null,null,null,null,null,null,null,null,null,null,null,null,null,null,null,{"$f":"IF(SUM(R760:W761)+SUM(R767:W770)=0,0,SUM(R760:W761)+SUM(R767:W770))","v":0},null,null,null,null,null,"DESPESAS",null,null,null,null,null,null,null,null,null,null,null,null,null,null,null,{"$f":"IF(SUM(AN760:AS764)+SUM(AN767:AS770)+AN765=0,0,SUM(AN760:AS764)+SUM(AN767:AS770)+AN765*12)","v":0}]
["RECEITA PREVISTA ATIVIDADES AGRÍCOLAS",null,null,null,null,null,null,null,null,null,null,null,null,null,null,null,null,{"$f":"SUM(AO667:AS686)","v":0},null,null,null,null,null,"CUSTO PREVISTO ATIVIDADES AGRÍCOLAS",null,null,null,null,null,null,null,null,null,null,null,null,null,null,null,{"$f":"SUM(AO689:AS708)","v":0}]
["RECEITA PREVISTA ATIVIDADES PECUÁRIAS",null,null,null,null,null,null,null,null,null,null,null,null,null,null,null,null,{"$f":"SUM(AO714:AS733)","v":0},null,null,null,null,null,"CUSTO PREVISTO ATIVIDADES PECUÁRIAS",null,null,null,null,null,null,null,null,null,null,null,null,null,null,null,{"$f":"SUM(AO736:AS755)","v":0}]
[null,null,null,null,null,null,null,null,null,null,null,null,null,null,null,null,null,null,null,null,null,null,null,"ARRENDAMENTOS"]
[null,null,null,null,null,null,null,null,null,null,null,null,null,null,null,null,null,null,null,null,null,null,null,"JUROS DE FINANCIAMENTOS"]
[null,null,null,null,null,null,null,null,null,null,null,null,null,null,null,null,null,null,null,null,null,null,null,"MANUTENÇÃO DE MAQUINÁRIO"]
[null,null,null,null,null,null,null,null,null,null,null,null,null,null,null,null,null,null,null,null,null,null,null,"MANUTENÇÃO FAMILIAR MENSAL"]
["OUTRAS RECEITAS",null,null,null,null,null,null,null,null,null,null,null,null,null,null,null,null,null,null,null,null,null,null,"OUTRAS DESPESAS"]
[]
[]
[]
[]
["MARGEM FINANCEIRA LÍQUIDA:",null,null,null,null,null,null,null,null,null,null,null,null,null,null,null,null,null,null,null,null,null,null,null,null,{"$f":"IF(AND(R759=\"\",AN759=\"\"),\"\",R759-AN759)","v":0}]
[]
["QUESTIONÁRIO RISCO SÓCIO AMBIENTAL"]
[]
["QUESTÃO 01"]
["Se a área de produção ou do proprietário/arrendador/parceiro faz parte da Amazônia Legal ou Pantanal, declara que cumpre com as exigências ambientais e legais, conforme disposto na Lei 12.651 de 25 de maio de 2012, no que se refere a áreas de Preservação Permanente e áreas de Reserva Legal?"]
[]
[]
["RESPOSTA:"]
[]
["QUESTÃO 02"]
[" Se a resposta anterior for “Não”, declara que há a compensação da Reserva Legal em outra propriedade?"]
[]
["RESPOSTA:"]
[]
["QUESTÃO 03"]
["Na realização de suas atividades, utiliza produtos químicos (ex: agrotóxicos e fertilizantes) não registrados em órgão federal, conforme as diretrizes e exigências dos órgãos federais responsáveis pelos setores da saúde, do meio ambiente e da agricultura? (Lei 7.802/1989). "]
[]
[]
["RESPOSTA:"]
[]
["QUESTÃO 04"]
["É realizada a tríplice lavagem ou tecnologia equivalente, procedimentos para devolução, destinação, transporte, reciclagem, reutilização e inutilização de embalagens vazias de agrotóxicos? (§ 4º artigo 6º da Lei 7.902/1989)"]
[]
[]
["RESPOSTA:"]
[]
["QUESTÃO 05"]
["Na produção e/ou execução das atividades são atendidas as medidas trabalhistas de saúde e segurança do trabalho, legislação trabalhista e atendimento às normas internacionais de responsabilidade social e desenvolvimento sustentável?"]
[]
[]
["RESPOSTA:"]
[]
["QUESTÃO 06"]
["A atividade está sujeita a licenciamento ambiental conforme a Resolução CONAMA 237 de 19 de dezembro de 1997? Se sim, declara possuir todos os licenciamentos necessários, vigentes?"]
[]
[]
["RESPOSTA:"]
[]
["QUESTÃO 07"]
["O uso da água na área de produção e/ou construção está em conformidade com as normas de utilização de recursos hídricos? (Lei nº 9.433/97) "]
[]
[]
["RESPOSTA:"]
[]
["QUESTÃO 08"]
["Em caso de financiamento de bens, a propriedade beneficiada é ou foi objeto de inquérito, multas, embargos ou auto de infração relacionado às questões ambientais?"]
[]
[]
["RESPOSTA:"]
[]
["QUESTÃO 09"]
["Quando há infrações ou embargos de ordem ambiental e/ou social, o infrator poderá aderir ao Programa de Regularização Ambiental – PRA ou firmar, com o Órgão Regulador, um Termo de Ajustamento de Conduta – TAC para regularização. Houve adesão ao PRA ou firmamento de um TAC em decorrência de questões sociais ou ambientais?"]
[]
[]
["RESPOSTA:"]
[]
[{"$f":"IF(E826=\"SIM, FOI FIRMADO UM PRA OU TAC\",\">>>>>>>>>     IMPORTANTE: O PRA OU TAC DEVE SER ANEXADO A ESTE FORMULÁRIO DE ATUALIZAÇÃO CADASTRAL    <<<<<<<<<\",\"\")","v":""}]
[]
[]
["DATA DE REFERÊNCIA:",null,null,null,null,null,null,null,null,null,"/",null,null,null,null,null,"/"]
[]
[]
[]
[]
["________________________________________",null,null,null,null,null,null,null,null,null,null,null,null,null,null,null,null,null,null,null,null,null,null,null,null,"________________________________________"]
[{"$f":"IF(TP_PESSOA=\"FÍSICA\",UPPER(D10),UPPER(D21))","v":""},null,null,null,null,null,null,null,null,null,null,null,null,null,null,null,null,null,null,null,null,null,null,null,null,{"$f":"UPPER('INFORMAÇÕES GERAIS'!H61)","v":""}]
[{"$f":"IF(G8=\"JURÍDICA\",\"Responsável pela Empresa\",\"Associado\")","v":"Associado"},null,null,null,null,null,null,null,null,null,null,null,null,null,null,null,null,null,null,null,null,null,null,null,null,{"$f":"CONCATENATE(\"Responsável Técnico - \",ÓRGÃO,\" \",N_ÓRGÃO)","v":"Responsável Técnico - CREA / CFTA: "}]

{"sheet":"EMPRESAS ELABORADORAS","index":1,"n_rows":11,"n_cols":6,"rows_kept":11,"cut":false,"hidden":true,"merged":[]}
["NOME","CNPJ","ENDEREÇO","CIDADE","TELEFONE","EMAIL"]
["AGROMINAS - APA ASSESSORIA E PLANEJAMENTO AGROPECUÁRIO LTDA",7357636000134,"RUA DO BÁLSAMO, Nº 500, BAIRRO CAMPESTRE","SÃO GOTARDO","(34)  3671-3425","AGROMINASSG@YAHOO.COM.BR"]
["AGROSOLUÇÕES - AFA ASSESSORIA PROJETOS E PLANEJAMENTOS LTDA",33478456000110,"AV. RUI BARBOSA, 174A, CENTRO","SÃO GOTARDO","(34) 3671-3334","AGROSOLUCOES@AGROSOLUCOESLTDA.COM.BR"]
["COOPADAP - COOPERATIVA AGROPECUÁRIA DO ALTO PARANAÍBA",86675642000106,"ROD MG 235 KM 89, 443 - GUARDA DOS FERREIROS","SÃO GOTARDO","(34) 3616-1200","DEBORAPRATES@COOPADAP.COM.BR"]
["ÉLCIO EDUARDO URBANO JÚNIOR",7244640692,"RUA CORONEL FONTE BOA - Nº 725 - CENTRO","SÃO GOTARDO","(34) 99823-4210","URBANOELCIO@YAHOO.COM.BR"]
["EMATER-MG",19198118000102,"RUA BENTO FERREIRA DOS SANTOS, 160 S02, CENTRO","SÃO GOTARDO","(34) 3671-1355","SAO.GOTARDO@EMATER.MG.GOV.BR"]
["FORTPLAN - VICTOR SATORU ALVES MUKAEDA 10149154658",41465317000180,"AV. TABELIÃO JOÃO LOPES, Nº 1064, CAMPESTRE","SÃO GOTARDO","(34) 99944-7158","FORTPLAN@OUTLOOK.COM"]
["NIVALDO LUCAS MARTINS",10839110669,"RUA CURITIBA, N° 95, BAIRRO SANTA TEREZINHA","SÃO GOTARDO","(34) 99931-0052","THIAGOFERNANDES@SHIMADAAGRO.COM.BR"]
["NOVA CONSULTORIA - JUSCELINO ALEXANDRINO MACHADO EIRELI",14409336000117,"AV. PRESIDENTE VARGAS, 245, CENTRO","SÃO GOTARDO","(34) 3671-2396","NOVACONSULTORIAEPROJETOS@HOTMAIL.COM"]
["PAULO MITURU YAMAGAMI",97037680834,"AV. RIO TOCANTINS, N° 70, BAIRRO SOL NASCENTE","SÃO GOTARDO","(34) 99983-0655","AGROLOGICA@YMAIL.COM"]
["PROGEO - ISAIAS DE SOUZA SANTOS",29368223000198,"RUA TRISTAO FURTADO, Nº 114, CENTRO","RIO PARANAÍBA","(34) 99961-9993","PROGEORP@GMAIL.COM"]

{"sheet":"LISTA","index":2,"n_rows":10,"n_cols":14,"rows_kept":10,"cut":false,"hidden":true,"merged":[]}
["LEITE",null,"ESTADO CIVIL",null,"TIPO EMPRESA",null,null,null,"NÃO ALFABETIZADO",null,null,null,null,"SÓCIO"]
["CORTE (CRIA)",null,"SOLTEIRO(A)",null,"MICROEMPREENDEDOR INDIVIDUAL (MEI)",null,null,null,"ATÉ 4ª SÉRIE INCOMPLETA DO ENSINO FUNDAMENTAL",null,null,null,null,"SÓCIO ADMINISTRADOR"]
["CORTE (RECRIA)",null,"CASADO(A)",null,"MICROEMPRESA (ME)",null,null,null,"4ª SÉRIE COMPLETA DO ENSINO FUNDAMENTAL"]
["CORTE (ENGOR.)",null,"VIÚVO(A)",null,"EMPRESA DE PEQUENO PORTE (EPP)",null,null,null,"DA 5ª À 8ª SÉRIE DO ENSINO FUNDAMENTAL"]
[null,null,"DIVORCIADO(A)",null,"EMPRESA DE MÉDIO PORTE",null,null,null,"ENSINO FUNDAMENTAL COMPLETO (ANTIGO 1º GRAU)"]
[null,null,"SEPARADO(A)",null,"GRANDE EMPRESA",null,null,null,"ENSINO MÉDIO INCOMPLETO (ANTIGO 2º GRAU)"]
[null,null,"DESQUITADO(A)",null,null,null,null,null,"ENSINO MÉDIO COMPLETO (ANTIGO 2º GRAU)"]
[null,null,"UNIÃO ESTÁVEL",null,null,null,null,null,"EDUCAÇÃO SUPERIOR INCOMPLETA"]
[null,null,null,null,null,null,null,null,"EDUCAÇÃO SUPERIOR COMPLETA"]
[null,null,null,null,null,null,null,null,"PÓS-GRADUAÇÃO / MESTRADO / DOUTORADO"]

{"sheet":"LISTA_PATRIMÔNIO","index":3,"n_rows":21,"n_cols":11,"rows_kept":21,"cut":false,"hidden":true,"merged":[]}
["LOCALIZAÇÃO","TIPO USO","TIPO BEM","TIPO BEM",null,null,null,null,"TIPO_SEMOVENTES",null,"REF"]
["URBANO","RESIDENCIAL","CASA","VEÍCULO",null,null,null,null,"SUÍNOS",null,1]
["RURAL","COMERCIAL","APARTAMENTO","MÁQUINA",null,null,null,null,"BUBALINOS",null,2]
[" ","INDUSTRIAL","PRÉDIO","EQUIPAMENTO",null,null,null,null,"EQUINOS",null,3]
[null,"RURAL","TERRENO",null,null,null,null,null,"OVINOS",null,4]
[null,null,"PRÉDIO",null,null,null,null,null,"APICULTURA",null,5]
[null,null,"TERRENO",null,null,null,null,null,"ASININOS",null,6]
[null,null,"LOJA",null,null,null,null,null,"AVICULTURA",null,7]
[null,null,"SALA",null,null,null,null,null,"CANINOS",null,8]
[null,null,"GALPÃO",null,null,null,null,null,"CAPRINOS",null,9]
[null,null,"PRÉDIO",null,null,null,null,null,"PISCICULTURA",null,10]
[null,null,"TERRENO",null,null,null,null,null,"RANICULTURA",null,11]
[null,null,"FAZENDA",null,null,null,null,null,"SERICICULTURA",null,12]
[null,null,"SÍTIO",null,null,null,null,null,null,null,13]
[null,null,"RANCHO",null,null,null,null,null,null,null,14]
[null,null,"CHÁCARA",null,null,null,null,null,null,null,15]
[null,null,"ESTÂNCIA",null,null,null,null,null,null,null,16]
[null,null,"OUTRO",null,null,null,null,null,null,null,17]
[null,null,null,null,null,null,null,null,null,null,18]
[null,null,null,null,null,null,null,null,null,null,19]
[null,null,null,null,null,null,null,null,null,null,20]

{"sheet":"LISTAS","index":4,"n_rows":32,"n_cols":29,"rows_kept":32,"cut":false,"hidden":true,"merged":[]}
["CULTURAS","UNIDADES","DIA","MÊS","ANO","ASSISTENCIA TÉCNICA","GARANTIA","ATIVIDADE FINANCIADA","ATIVIDADE","PRODUTO","MEDIDA","VALOR","FINANCIADO","PRAZO MÁXIMO","1 MÊS",1,null,null,"NÍVEL TECNOLÓGICO","SISTEMA PRODUTIVO","ANGUS","BEZERRA","BEZERRA","0 a 6",{"$f":"YEAR(TODAY())-1","v":2020},null,"PRODUTOR",null,"PERIODICIDADE"]
[null,"UN",1,"JANEIRO",{"$f":"YEAR(TODAY())","v":2021},"SOMENTE ELABORAÇÃO DO PROJETO","PENHOR DOS ANIMAIS","BOVINOCULTURA DE LEITE","CRIA","CABEÇAS DE BEZERRO","CAB/MATRIZ","(POR CABEÇA)","MATRIZ BOVINA",12,"2 MESES",2,null,null,"EXTENSIVO","PASTAGEM","BONSMARA","BEZERRO","BEZERRA","7 a 12",{"$f":"Y1-1","v":2019},null,"PEQUENO PRODUTOR",null,"MENSAL"]
[null,"KG",2,"FEVEREIRO",{"$f":"E2+1","v":2022},"PROJETO + ASSISTÊNCIA","PENHOR DOS ANIMAIS + AVAIS","BOVINOCULTURA DE CORTE","RECRIA","CABEÇAS DE BOI MAGRO","KG PV/DIA/BEZ","(POR KG)","BEZERRO P/ RECRIA",12,"3 MESES",3,null,null,"SEMI-INTENSIVO","PASTAGEM IRRIGADA","CARACU","NOVILHA","BEZERRO","0 a 6",2018,null,"MÉDIO PRODUTOR",null,"SEMESTRAL"]
[null,"TON",3,"MARÇO",{"$f":"E3+1","v":2023},null,"PENHOR DOS ANIMAIS + GARANTIA REAL",null,"ENGORDA","CABEÇAS DE BOI GORDO","KG PV (GP)/DIA","(POR KG)","BOI MAGRO P/ ENGORDA",12,"4 MESES",4,null,null,"INTENSIVO","PASTAGEM + SUPLEMENTAÇÃO","BELGIAN BLUE","NOVILHO","BEZERRO","7 a 12",2017,null,"GRANDE PRODUTOR",null,"ANUAL"]
[null,"GR",4,"ABRIL",2024,null,"SOMENTE AVAIS",null,"RECRIA / ENGORDA","CABEÇAS DE BOI GORDO","KG PV (GP)/DIA","(POR KG)","BEZERRO P/ REC. E ENG.",24,"5 MESES",5,null,null,null,"PASTAGEM IRRIGADA + SUPLEMENT.","BRAFORD","VACA","BOI","25 a 30",2016]
[null,"m",5,"MAIO",2025,null,"SOMENTE GARANTIA REAL",null,"ENGORDA EM CONFINAMENTO","CABEÇAS DE BOI GORDO","KGPV (GP)/DIA","(POR KG)","BOI MAGRO P/ ENGORDA",6,"6 MESES",6,null,null,null,"ESTABULAMENTO","DEVON","BOI","BOI","30 a 36",2015]
[null,"SACO",6,"JUNHO",2026,null,"AVAIS + GARANTIA REAL",null,"PRODUÇÃO DE LEITE","LITROS DE LEITE","L/DIA/MATRIZ","(POR LITRO)","MATRIZ BOVINA",12,"7 MESES",7,null,null,null,null,"BRAHMAN",null,"BOI",{"$f":"TEXT(\"+ de 36\",1)","v":"+ de 36"},2014]
[null,"DOSE",7,"JULHO",2027,null,null,null,null,null,null,null,null,null,"8 MESES",8,null,null,null,null,"BRANGUS ",null,"NOVILHA","13 a 18",2013]
[null,"DIÁRIA",8,"AGOSTO",2028,null,null,null,null,null,null,null,null,null,"9 MESES",9,null,null,null,null,"CANCHIM",null,"NOVILHA","19 a 24"]
[null,"HORA",9,"SETEMBRO",2029,null,null,null,null,null,null,null,null,null,"10 MESES",10,null,null,null,null,"CHAROLÊS",null,"NOVILHA","25 a 30"]
[null,"L",10,"OUTUBRO",2030,null,null,null,null,null,null,null,null,null,"11 MESES",11,null,null,null,null,"CHIANINA",null,"NOVILHO","19 a 24"]
[null,"ml",11,"NOVEMBRO",2031,null,null,null,null,null,null,null,null,null,"12 MESES",12,null,null,null,null,"GIR",null,"NOVILHO","13 a 18"]
[null,null,12,"DEZEMBRO",2032,null,null,null,null,null,null,null,null,null,"13 MESES",13,null,null,null,null,"GUZERÁ",null,"NOVILHO","25 a 30"]
[null,null,13,null,null,null,null,null,"CRIA / RECRIA","BOI MAGRO (CABEÇA)","CAB/MATRIZ","(POR CABEÇA)","MATRIZ BOVINA",null,"14 MESES",14,null,null,null,null,"HEREFORD",null,"VACA","25 a 30"]
[null,null,14,null,null,null,null,null,"CRIA / RECRIA / ENGORDA","BOI GORDO (CABEÇA)","CAB/MATRIZ","(POR CABEÇA)","MATRIZ BOVINA",null,"15 MESES",15,null,null,null,null,"INDUBRASIL",null,"VACA","30 a 36"]
[null,null,15,null,null,null,null,null,null,null,null,null,null,null,"16 MESES",16,null,null,null,null,"LIMOUSIN",null,"VACA",{"$f":"TEXT(\"+ de 36\",1)","v":"+ de 36"}]
[null,null,16,null,null,null,null,null,null,null,null,null,null,null,"17 MESES",17,null,null,null,null,"MARCHIGIANA"]
[null,null,17,null,null,null,null,null,null,null,null,null,null,null,"18 MESES",18,null,null,null,null,"NELORE"]
[null,null,18,null,null,null,null,null,null,null,null,null,null,null,"19 MESES",19,null,null,null,null,"PIEMONTÊS"]
[null,null,19,null,null,null,null,null,null,null,null,null,null,null,"20 MESES",20,null,null,null,null,"RED ANGUS"]
[null,null,20,null,null,null,null,null,null,null,null,null,null,null,"21 MESES",21,null,null,null,null,"SANTA GERTRUDIS"]
[null,null,21,null,null,null,null,null,null,null,null,null,null,null,"22 MESES",22,null,null,null,null,"SENEPOL"]
[null,null,22,null,null,null,null,null,null,null,null,null,null,null,"23 MESES",23,null,null,null,null,"SIMENTAL"]
[null,null,23,null,null,null,null,null,null,null,null,null,null,null,"24 MESES",24,null,null,null,null,"TABAPUÃ"]
[null,null,24,null,null,null,null,null,null,null,null,null,null,null,null,null,null,null,null,null,"CRUZ. INDUSTRIAL"]
[null,null,25,null,null,null,null,null,null,null,null,null,null,null,null,null,null,null,null,null,"OUTROS"]
[null,null,26]
[null,null,27]
[null,null,28]
[null,null,29]
[null,null,30]
[null,null,31]